Workbook

Sheet Form Instructions
G2: Custom Application - Electronic Version
G3: Dominion Energy South Carolina, Inc.
G4: Use Buttons Below to Navigate the Application
D6: Project Information & Signatures | G6: Project Summary Input | J6: Custom Input Instructions | M6: Whole Building Solutions | P6: Terms & Conditions
R9: ="Version # "&'Version Tracking'!B2 -> Version # 15.1
B11: Application and Instructions
B12: The EnergyWise for Your Business Program is designed to help non-residential customers replace aging, inefficient equipment and systems with energy-efficient technologies. The custom program offers financial incentives for more complex and site-specific cost effective opportunities for energy conservation measures, or multi-measure projects that are not included in the other EnergyWise for Your Business incentive forms. Custom projects must be able to show specific and verifiable energy savings and costs, typically developed by a third-party firm. Incentives will be determined on a project-by-project basis. For each program year (December 1–November 30), EnergyWise for Your Business incentive payments are capped per Customer Federal Tax ID number at $150,000 per Project type. Details of the program, including incentive levels and technical requirements, are subject to change without prior notice. You may go to www.DominionEnergy.com/ForYourBizSC to get the most current program information, or you may call 877-784-7234.
B14: Eligible Participants | K14: Pre-Approval Requirements
B15: EnergyWise for Your Business is open to all non-residential electric customers within our service territory, except for customers eligible for Rate 23 and certain large retail customers who have elected to opt out of the Demand Side Management (DSM) programs by notifying us in writing using the Opt-Out form. | K15: All projects require pre-approval prior to ordering, purchasing or installing any equipment. After the application has been pre-approved by Dominion Energy South Carolina, the customer will be notified in writing, assigned a project identification number, and given any specific instructions. The customer may then purchase and install the pre-approved equipment.
B16: Eligible Equipment | K16: Maximum Incentive will be capped based on Total Project Cost
B17: This application is for custom energy conservation measures not included on the other EnergyWise for Your Business prescriptive incentive applications. Energy conservation measures required by the most current energy code adopted by the State of South Carolina are not eligible for incentives. Custom incentives are available for projects involving retrofitting existing equipment, end-of-life equipment replacements, or new construction. All equipment must be new; used or refurbished equipment is not eligible. | K17: Incentive will be capped at 50% of total project costs for retrofit/equipment replacement, and 75% of total project costs for renovation, end of useful life (EUL), and new construction projects. Total Project Cost is determined by the cost of eligible equipment and labor needed to install eligible equipment. Total Project Cost does NOT include the tax burden/tariffs of project and/or freight/transportation/shipping/storage for eligible equipment. Ancillary costs (e.g. lift fees, electrical upgrades, wiring, etc.) related to the project are not included in the Total Project Costs and may only be included if it is required for replacing existing equipment with the eligible equipment.
B19: Participation Instructions
B20: Please review the program Terms and Conditions tab, Custom Input Instructions tab and the Whole Building Solutions tab, for all program rules and requirements. Tabs colored Blue should be filled in by applicant.
B21: Step 1
C22: All custom applications require thorough and complete documentation of the proposed costs and projected electric energy usage and savings. Before beginning the application process, the customer or the contractor should check with an EnergyWise for Your Business representative to determine the eligibility of the proposed project and to establish requirements for detailed savings projections and cost estimates. This information must be submitted for review and evaluation of potential incentives.
B23: Step 2
B24: Complete the Project Information tab and Project Summary tab. | I24: Use the Custom Input Instructions tab as a reference for what supporting documentation is required.
B25: Submit Completed Applications to: EnergyExperts@SC.DominionEnergyAccount.com.
B26: Step 3
C27: Applications will be processed and we will notify the customer in writing when the review is complete and funds have been reserved. Upon receipt of program pre-approval, customers may purchase and install their energy efficient equipment. We will notify customers if an inspection of the facility is necessary prior to pre-approval. Note: Any changes in the proposed equipment, quantities, or operating conditions must be approved by us prior to implementing.
B28: Step 4
C29: Upon project completion, please return the signed customer acknowledgment at bottom of the pre-approval letter along with proof of purchase. Dominion Energy South Carolina will notify customers if an inspection of the facility is necessary prior to final payment processing. Proof of purchase must include an itemized invoice for all Energy Conservation Measures (ECMs) that may qualify for the EnergyWise for Your Business incentive. Each individual product or model number must include the corresponding costs and quantity. Labor and material must be listed separately when labor is included in the Overall Project Costs.
B31: Questions | C31: If you have questions, email EnergyExperts@SC.DominionEnergyAccount.com, | L31: visit www.DominionEnergy.com/ForYourBizSC or call 877-784-7234.

Sheet Project Information
A1: Dominion Energy South Carolina, Inc. (Fill in Blue and Orange Cells Only!)
A2: PROJECT INFORMATION
A3: Application Date | K3: Expected Completion Date
A4: Company Name | C4: FALSE | K4: Electric Account #
A5: Street Address (of the facility) | C5: FALSE | K5: Customer Federal Tax ID
A6: City | C6: FALSE | K6: State | L6: SC | M6: Zip
A7: Building Type (select one) | C7: FALSE | K7: Please indicate "other" type:
A8: CUSTOMER CONTACT INFORMATION | C8: FALSE
A9: Mailing Address:
A10: (where all correspondence will be mailed, including incentive check if payment is to the customer)
A11: City | H11: State | K11: Zip
A12: Contact Person | K12: Title
A13: Telephone No. | K13: Email
A15: CONTRACTOR INFORMATION
A16: Company Name
A17: Street Address
A18: City | H18: State | K18: Zip
A19: Contact Person | K19: Title
A20: Telephone No. | C20: FALSE | K20: Email
A22: Please indicate if the Customer or Contractor should be primary point of contact for this project:
A23: ADDITIONAL PRIMARY POINT OF CONTACT (IF APPLICABLE)
A24: Company Name
A25: Street Address
A26: City | H26: State | K26: Zip
A27: Contact Person | K27: Title
A28: Telephone No. | K28: Email
A30: PAYMENT INFORMATION
A31: Payment to:
A32: Federal Tax ID # (of recipient) | J32: Tax Status of Recipient (select one)
A33: Customer Name | K33: Title
A34: Customer Signature (if payment to contractor, Customer must type his/her name in the orange box to the right and check the box below) | K34: Date (XX/XX/XXXX)
A35: FALSE | B35: I understand and intend that my electronic, PDF or facsimile signature be accepted and have the same force and effect as an original signature.
A37: Checklist & Acknowledgement
A38: APPLICATION CHECKLIST
A39: For faster application processing, please include the following items with your application:
A40: Complete application: Project Information tab, Customer Acknowledgment checkbox, and Project Summary tab. | Q40: FALSE
A41: Electric account number at top of page. Attach copy of electric bill. | Q41: FALSE
A42: The most recent IRS Form W-9 completed for payment recipient. Physical signature is required on the W-9 Form. If payment is to a contractor, both the customer's and the contractor's W-9 Forms must be provided. | Q42: FALSE
A43: Supporting documentation for each energy conservation measure as indicated on the Custom Input Instructions tab. | Q43: FALSE
A44: Customer signature and proof of purchase (contractor receipts), at time of project completion. See Terms and Conditions for invoicing requirements. | C44: FALSE | Q44: FALSE
A45: Applications submitted for processing will be processed in the order in which they are received. Applicants will be notified as to their pre-approval status and/or any pre-inspection requirements within 20 business days from receipt of complete application. Applicants will be notified if post-installation inspections are required.
A47: CUSTOMER ACKNOWLEDGMENT
A48: Authorized Representative | I48: Title
I49: Date (XX/XX/XXXX)
A50: FALSE | B50: By checking this box and typing my name, I hereby certify that all statements made on this application are correct to the best of my knowledge and that I have read and agree to the Terms and Conditions. Furthermore, I understand and intend that my electronic, PDF or facsimile signature be accepted and have the same force and effect as an original signature. Note: Upon completion of project, Dominion Energy South Carolina, Inc. customer of record must sign and return the written pre-approval letter and provide invoices for all energy efficiency measures.
A51: Dominion Energy South Carolina, Inc. Custom Application - Electronic Version | O51: ="Version # "&'Version Tracking'!B2 -> Version # 15.1

Sheet Terms and Conditions
A1: Dominion Energy South Carolina, Inc.
A2: TERMS AND CONDITIONS
A3: 1. Eligibility: EnergyWise for Your Business Program (“Program”) incentives are available to non-residential electric customers for the purchase and installation of qualifying energy conservation measures (ECMs) in the Dominion Energy South Carolina service territory, subject to these Terms and Conditions (T&Cs). The process of purchasing and installing ECMs for eligible Customers pursuant to the Program is referred to herein as a “Project” or “Projects”. Customers eligible for Rate 23 and specific large retail customers who have elected to opt out of Demand Side Management programs, by notifying us in writing using the Opt-Out form provided, are not eligible to participate. Dominion Energy South Carolina and our Program implementer (“Implementer”) (together, “We”) reserve the right to deny any application that may result in our exceeding its Program budget. Program incentives are limited, offered on a first-come/first-served basis, and are subject to Project and Customer eligibility and funds availability. For each Program year (December 1 – November 30), Program incentive payments are capped per Customer Federal tax ID number at $150,000 per Project type. 2. Project Types: The Program includes the following five Project types: Lighting Projects, HVAC and Mechanical Projects, Food Service and High Efficiency Equipment Projects, Agriculture Projects, and Custom Projects. Lighting projects include Projects that use the Retrofit and New Construction Lighting application. HVAC and Mechanical Projects include Projects listed on the HVAC Application and Compressed Air and Motors Application including Unitary HVAC, Chillers, Heat Pump Water Heaters, Window Film, Cool Roof, Variable Frequency Drives, Guestroom Energy Management Systems, Advanced Roof Top Controls, Compressed Air Engineered Nozzles, Zero Loss Condensate Drains and High Efficiency Motors. Food Service and High Efficiency Equipment Projects include all cooking equipment and “plug load” equipment that is incentivized under the Food Service and High Efficiency Application. Restaurant cooking equipment, ice machines, vending machine and refrigeration controls, commercial washers/dryers, and lighting that may be included inside the aforementioned equipment are considered Food Service and High Efficiency Equipment Projects. Agriculture Projects include all agriculture equipment that is incentivized under the Agriculture Application. Custom Projects are Projects that can demonstrate cost effective and lasting energy efficiency and do not fall under one of the aforementioned Project types. These Projects are “custom” tailored to the Customer for each Project and cannot receive a prescriptive incentive as the savings varies widely with each Project and technology. Building controls, Building Tune-ups, Whole Building Solutions, System Optimization, Technical Services, and new emerging technologies generally fall under this Project type. The above examples are provided for illustrative purposes only and may not be inclusive of all Projects. 3. Authorization, Program Changes, Suspension, or Cancellation: We may change the Program requirements, incentives or T&Cs, including suspending acceptance of applications or terminating the Program, at any time and without notice. In the event of a Program change, pre-approved applications will be processed to completion under the T&Cs in effect at time of pre-approval. Submission of a completed application does not entitle Customer to Program participation. For all Projects, entitlement to Program participation and our obligation to pay incentives may occur only after we have granted written authorization, which we may grant or not at its sole discretion. 4. Project Approval: Pre-approval is required for all Projects. We reserve the right to inspect any project prior to pre-approval. For all Projects, no project-related ECMs may be ordered or installed prior to the date of our pre-approval. Violation of this prohibition will disqualify the ECM for incentives. Projects must be completed by the date listed on the pre-approval notification letter (within 180 calendar days for retrofit projects or one year for new construction projects). 5. Creditworthiness: An incentive payment is conditioned upon and subject to Customer maintaining its financial creditworthiness and keeping its account in good standing. At any time prior to an issuance of an incentive check, we may request financial information to support its financial due diligence procedures. Customer agrees to assist in this reasonable financial review. If we believe in good faith that the Customer’s account is not in good standing, or if creditworthiness of participant has been diminished, we may reject approval of an incentive payment. 6. Proof of Purchase: Prior to our verification of the ECM installation, Customer must provide copies of all invoices or other appropriate documentation that clearly verifies the costs of purchasing and installing the ECMs, including all material, labor, and equipment discounts. Invoices must indicate a verifiable breakout of all ECMs purchased for installation under the ECM incentives application, including model numbers and quantity. 7. Project Verification: We (or our Third-Party Evaluator “Evaluator”) may conduct an inspection of Customer’s facility to verify pre- and post-installation conditions or verify documentation prior to incentive payment at any time after receipt of an application. No warranty is expressed or implied by this verification. We are not obligated to pay any incentive until it has performed a satisfactory post-installation inspection. Should we determine that ECMs were not installed in accordance with the approved application, or if an unapproved ECM was installed, or if the installation was not consistent with generally accepted engineering/construction practices, changes may be required before payment is issued. Notwithstanding anything to the contrary, should we determine at any point before payment of the incentive that there has been significant deviation in the type, amount, cost or performance of the ECMs underlying this incentive commitment that were set forth in the Program application and pre-approved, we retain the right to revoke this commitment or reduce the final incentive amount accordingly. We reserve this right despite a satisfactory post-installation inspection. Customer agrees to provide prompt notice to us of any significant deviation in the type, amount, cost or performance of the ECMs underlying this incentive commitment that were set forth in the Program application and pre-approved by us. | B3: 8. Customer Tax Obligation: Customer or Customer’s designated contractor is responsible for declaring and paying any and all applicable federal, state, and local taxes that may be owed on any incentive payment. Neither Dominion Energy South Carolina, Inc. nor any of its subsidiaries shall be liable for any federal, state, and local taxes that may be owed on or as a result of any incentive payment. The party receiving the incentive payment (Customer or Contractor) must complete IRS Form W-9 and submit it to us with the incentive application materials. If payment is to a contractor, customer's W-9 must also be provided. 9. Compliance: Customer is responsible for obtaining any and all necessary licenses and permits related to the installation of ECMs. Customer also agrees to comply with all federal, state, and local laws, codes, and regulations related to the installation and disposal of all equipment. 10. Removal of Equipment: Customer agrees to remove and dispose of the equipment being replaced by the ECMs in accordance with all legal requirements. Customer agrees not to re-install any of this equipment in our service territory or transfer it to any other party for such installation. 11. Replacement of Failed Equipment: Customers who install ECMs are expected to replace any of the ECMs that fail with similar or superior energy savings equipment at Customer’s expense. 12. Evaluation Follow-up Visits: With advance notice, we reserve the right to make or to have its contractor(s) make follow-up visits to Customer facilities during the 36 months following completion of the project to provide us with an opportunity to review the operation of the ECMs for Program evaluation purposes. Customer agrees to cooperate with this effort. 13. Contractor Selection: Customer may select any contractor to perform the work contemplated by the application, even after the application is pre-approved by us. However, we reserve the right, in its sole discretion, to prohibit specific contractors from Program participation. 14. No Warranties: Dominion Energy South Carolina, Inc. does not endorse, guarantee, or warrant any particular manufacturer or product and we provide no warranties, express or implied, for any products or services, and herein specifically disclaims any such guarantees or warranties. We are not liable or responsible for any act or omission of any contractor hired by Customer. Customer’s reliance on warranties is limited to any warranties that may arise from, or be provided by contractors, vendors, etc. Customer acknowledges that neither Dominion Energy South Carolina, Inc. nor any of its consultants are responsible for ensuring that the design, engineering, and construction of the facility or installation of the ECMs are proper or comply with any particular laws (including patent laws), codes, regulations, or industry standards. We make no representations of any kind regarding the results to be achieved by the ECMs or the adequacy or safety of such measures. 15. Assumption of Risk and Limitation of Liability: Customer assumes and acknowledges all risks arising from its participation in the Program including but not limited to exposure to the novel coronavirus (“COVID-19”) and releases and discharges Dominion Energy, Inc., Dominion Energy South Carolina, its Implementer, Evaluator, and their respective officers, directors, employees and agents from any liability related thereto. Our sole obligation is limited to paying the properly qualified rebates specified herein. Neither Dominion Energy South Carolina, Inc., any of its subsidiaries, nor its Implementer or Evaluator shall be liable to Customer or any other party for any special, indirect, consequential, or incidental damages, regardless of the theory of recovery, caused by or arising from any activities associated with this Program. 16. Obligations between the Parties: Customer acknowledges that any contractor selected by Customer is not an agent, contractor, or subcontractor of Dominion Energy South Carolina and is an independent contractor engaged by Customer, and that we do not manage or control the contractor’s performance. We shall have no obligation to maintain, remove, or perform any work whatsoever on the ECMs installed. We shall have no liability for a contractor’s failure to perform, for failure of the energy savings measures to function, for any damage to Customer’s premises caused by the contractor, or for any and all damages to property or injuries to persons caused by or associated with the energy savings measures. 17. Miscellaneous: These T&Cs and this application, of which these T&Cs are an integral part, constitute the entire agreement between the parties and supersede all other communications, representations, and understandings. | D3: =B6 -> 0
B8: ="Version # "&'Version Tracking'!B2 -> Version # 15.1

Sheet Project Summary
B2: Copyright © 2025 ICF Resources, LLC, All Rights Reserved. Do not copy, distribute or quote without ICF’s written permission.
B4: Fill in Light Blue Cells Only!
B5: PROJECT SUMMARY
B6: Attach project study including energy savings information and costs for each energy conservation measure. Briefly describe the project below.
B7: Project Overview
B9: Base Case Description
B11: Proposed System Description
B14: SUMMARY OF COST ESTIMATES
B15: Provide back-up documentation for all material/equipment and labor costs, categorized by major pieces of equipment and project components. Sales tax may not be included. Adjust for salvage/resale value of equipment being replaced. Enter summarized costs in the table below.
C16: Estimated Material/Equipment Cost | D16: Estimated Labor Cost | E16: Estimated Total Cost
B17: Baseline Costs | E17: =C17+D17 -> 0
B18: Proposed Costs | E18: =C18+D18 -> 0
B20: ENERGY IMPACTS
B21: Please provide estimated annualized energy (kWh) usage and demand (kW) for each of the time periods listed below. Attach full documentation supporting energy and demand estimates. When a computer model is used for energy and demand calculations, please provide a complete description of input conditions for baseline and efficient states in addition to model outputs for both states.
C22: Baseline | D22: Proposed | E22: Reduction
B23: Estimated Annual Energy Consumption (kWh) | E23: =C23-D23 -> 0
B24: Estimated Summer Peak Demand (kW) Time Period: December-February 6am - 9am, M-F, Non-Holiday | E24: =C24-D24 -> 0
E25: ="Version # "&'Version Tracking'!B2 -> Version # 15.1

Sheet Custom Input (hidden)
F2: Custom Program Measure Qualification Tool
G3: ="Version # "&'Version Tracking'!B2 -> Version # 15.1 | K3: Date: | L3: 2012-02-29
C4: Copyright © 2011 ICF Resources, LLC, All Rights Reserved. Do not copy, distribute or quote without ICF’s written permission.
B6: General Project Information | G6: SCE&G Project Number:
B7: Project Name: | G7: Customer Name:
B8: Project Type: | G8: Project Address:
B9: Measure Name: | G9: Project City:
B10: Measure Category: | G10: Customer Contact: | K10: Title:
B11: Measure Life: | G11: Phone: | J11: Email:
B12: Project Implementation Year | G12: Electric Account No: | K12: SCE&G Rate: | L12: 22 - School
B14: Peak Demand Definition The highest estimated kW demand during the time period of: 6:00 AM - 9:00 AM on non-holiday weekdays during the months of December - February | F14: Measure Impacts and Costs | H14: Annualized kWh Usage | I14: Peak Demand (kW) | J14: Estimated Costs
J15: Labor and Materials | K15: Equipment | L15: Total
F16: Baseline State | L16: =SUM(J16:K16) -> 0
F17: Efficient State | L17: =SUM(J17:K17) -> 0
F18: Incremental | H18: =H16-H17 -> 0 | I18: =I16-I17 -> 0 | J18: =J17-J16 -> 0 | K18: =K17-K16 -> 0 | L18: =L17-L16 -> 0
F19: Avoided Cost Value | H19: =IF(H18=0,"",'Custom Calc'!D2) ->  | I19: =IF(I18=0,"",'Custom Calc'!D3) ->  | L19: =SUM(H19:I19) -> 0
B21: NOTES: | H21: Pre-incentive Simple Payback: | K21: =IF(L19=0,"",'Custom Calc'!D12) -> 
H22: Qualifying Incentive: | K22: =IF(L19=0,"",IF('Custom Calc'!D15>0,'Custom Calc'!D15," ")) -> 
H23: Post-incentive Simple Payback: | K23: =IF(L19=0,"",'Custom Calc'!D16) -> 
H24: Approved Incentive:
H25: Total kWh Saved: | K25: =H18 -> 0
H26: Winter Peak kW: | K26: =I18 -> 0

Sheet Custom Calc (hidden)
C1: Incremental Impacts | D1: $$ value | G1: Incentive Caps as % of cost
A2: Avoided Energy Cost | B2: =VLOOKUP('Custom Input'!$D$10,'Custom Benefits'!$A$15:$AE$20,'Custom Input'!D11+1,0) ->  | C2: ='Custom Input'!H18 -> 0 | D2: =B2*C2/VLOOKUP('Custom Input'!D8,'Custom Calc'!G8:H9,2,0) ->  | G2: Retrofit | H2: 0.5
A3: Avoided Capacity Cost | B3: =HLOOKUP('Custom Input'!D11,'Custom Benefits'!B21:AE22,2) ->  | C3: ='Custom Input'!I18 -> 0 | D3: =B3*C3/VLOOKUP('Custom Input'!D8,'Custom Calc'!G8:H9,2,0) ->  | G3: New/ROB | H3: 0.75
A4: Total Avoided Cost | D4: =SUM(D2:D3) -> 
G5: Payback Threshold | H5: 1.5
A6: Cost Effective | B6: =IF(D4/'Custom Input'!L18>=1,"YES","NO") ->  | G6: Incentive Cap | H6: 25000
G7: Implementation and Admin Factor | H7: 0.75 | I7: of Incentive
A8: Cust Avg Energy Cost | B8: =VLOOKUP('Custom Input'!L12,'Retail Rates'!B3:J12,6,0) -> 0.12732 | C8: =C2 -> 0 | D8: =B8*C8 -> 0 | G8: Retrofit | H8: =1+(H$7*H2) -> 1.375
A9: Cust AVG kW Cost | B9: =VLOOKUP('Custom Input'!L12,'Retail Rates'!B3:J12,9,0) -> 0 | C9: =C3 -> 0 | D9: =B9*C9 -> 0 | G9: New/ROB | H9: =1+(H$7*H3) -> 1.5625
A10: Total Cust Savings | D10: =SUM(D8:D9) -> 0
A12: Cust Pre-Rebate payback | D12: ='Custom Input'!L18/'Custom Calc'!D10 ->  | E12: SPB Threshold Check
A13: Preliminary Incentive | D13: =IF(D12<H5,0,IF(B6="YES",VLOOKUP('Custom Input'!D8,'Custom Calc'!G2:H3,2,0)*'Custom Input'!L18,0)) ->  | E13: =IF(D13>H6,H6,D13) ->  | F13: DESC Cap
A14: Test Payback | D14: =('Custom Input'!L18-'Custom Calc'!D13)/'Custom Calc'!D10 -> 
A15: Qualifying Incentive | D15: =IF(B6="NO",0,IF(D14<H5,'Custom Input'!L18-('Custom Calc'!H5*'Custom Calc'!D10),D13)) -> 
A16: Post Rebate Payback | D16: =('Custom Input'!L18-'Custom Calc'!D15)/'Custom Calc'!D10 -> 

Sheet Custom Benefits (hidden)
A2: Energy Avoided Costs ($/kWh) | B2: Start Value:Year-1 | C2: Year-2 | D2: Year-3 | E2: Year-4 | F2: Year-5 | G2: Year-6 | H2: Year-7 | I2: Year-8 | J2: Year-9 | K2: Year-10 | L2: Year-11 | M2: Year-12 | N2: Year-13 | O2: Year-14 | P2: Year-15 | Q2: Year-16 | R2: Year-17 | S2: Year-18 | T2: Year-19 | U2: Year-20 | V2: Year-21 | W2: Year-22 | X2: Year-23 | Y2: Year-24 | Z2: Year-25 | AA2: Year-26 | AB2: Year-27 | AC2: Year-28 | AD2: Year-29 | AE2: Year-30
A3: Energy End-Use | B3: 2025 | C3: 2026 | D3: 2027 | E3: 2028 | F3: 2029 | G3: 2030 | H3: 2031 | I3: 2032 | J3: 2033 | K3: 2034 | L3: 2035 | M3: 2036 | N3: 2037 | O3: 2038 | P3: 2039 | Q3: 2040 | R3: 2041 | S3: 2042 | T3: 2043 | U3: 2044 | V3: 2045 | W3: 2046 | X3: 2047 | Y3: 2048 | Z3: 2049 | AA3: 2050 | AB3: 2051 | AC3: 2052 | AD3: 2053 | AE3: 2054
A4: Lighting | B4: =IFERROR(INDEX('Avoided Costs'!$B$4:$AO$10,MATCH($A4,'Avoided Costs'!$A$4:$A$10,0),MATCH(B$3,'Avoided Costs'!$B$3:$AO$3,0)),"") -> 0.051 | C4: =IFERROR(INDEX('Avoided Costs'!$B$4:$AO$10,MATCH($A4,'Avoided Costs'!$A$4:$A$10,0),MATCH(C$3,'Avoided Costs'!$B$3:$AO$3,0)),"") -> 0.052 | D4: =IFERROR(INDEX('Avoided Costs'!$B$4:$AO$10,MATCH($A4,'Avoided Costs'!$A$4:$A$10,0),MATCH(D$3,'Avoided Costs'!$B$3:$AO$3,0)),"") -> 0.053 | E4: =IFERROR(INDEX('Avoided Costs'!$B$4:$AO$10,MATCH($A4,'Avoided Costs'!$A$4:$A$10,0),MATCH(E$3,'Avoided Costs'!$B$3:$AO$3,0)),"") -> 0.054 | F4: =IFERROR(INDEX('Avoided Costs'!$B$4:$AO$10,MATCH($A4,'Avoided Costs'!$A$4:$A$10,0),MATCH(F$3,'Avoided Costs'!$B$3:$AO$3,0)),"") -> 0.055 | G4: =IFERROR(INDEX('Avoided Costs'!$B$4:$AO$10,MATCH($A4,'Avoided Costs'!$A$4:$A$10,0),MATCH(G$3,'Avoided Costs'!$B$3:$AO$3,0)),"") -> 0.056 | H4: =IFERROR(INDEX('Avoided Costs'!$B$4:$AO$10,MATCH($A4,'Avoided Costs'!$A$4:$A$10,0),MATCH(H$3,'Avoided Costs'!$B$3:$AO$3,0)),"") -> 0.057 | I4: =IFERROR(INDEX('Avoided Costs'!$B$4:$AO$10,MATCH($A4,'Avoided Costs'!$A$4:$A$10,0),MATCH(I$3,'Avoided Costs'!$B$3:$AO$3,0)),"") -> 0.058 | J4: =IFERROR(INDEX('Avoided Costs'!$B$4:$AO$10,MATCH($A4,'Avoided Costs'!$A$4:$A$10,0),MATCH(J$3,'Avoided Costs'!$B$3:$AO$3,0)),"") -> 0.06 | K4: =IFERROR(INDEX('Avoided Costs'!$B$4:$AO$10,MATCH($A4,'Avoided Costs'!$A$4:$A$10,0),MATCH(K$3,'Avoided Costs'!$B$3:$AO$3,0)),"") -> 0.061 | L4: =IFERROR(INDEX('Avoided Costs'!$B$4:$AO$10,MATCH($A4,'Avoided Costs'!$A$4:$A$10,0),MATCH(L$3,'Avoided Costs'!$B$3:$AO$3,0)),"") -> 0.062 | M4: =IFERROR(INDEX('Avoided Costs'!$B$4:$AO$10,MATCH($A4,'Avoided Costs'!$A$4:$A$10,0),MATCH(M$3,'Avoided Costs'!$B$3:$AO$3,0)),"") -> 0.063 | N4: =IFERROR(INDEX('Avoided Costs'!$B$4:$AO$10,MATCH($A4,'Avoided Costs'!$A$4:$A$10,0),MATCH(N$3,'Avoided Costs'!$B$3:$AO$3,0)),"") -> 0.064 | O4: =IFERROR(INDEX('Avoided Costs'!$B$4:$AO$10,MATCH($A4,'Avoided Costs'!$A$4:$A$10,0),MATCH(O$3,'Avoided Costs'!$B$3:$AO$3,0)),"") -> 0.066 | P4: =IFERROR(INDEX('Avoided Costs'!$B$4:$AO$10,MATCH($A4,'Avoided Costs'!$A$4:$A$10,0),MATCH(P$3,'Avoided Costs'!$B$3:$AO$3,0)),"") -> 0.067 | Q4: =IFERROR(INDEX('Avoided Costs'!$B$4:$AO$10,MATCH($A4,'Avoided Costs'!$A$4:$A$10,0),MATCH(Q$3,'Avoided Costs'!$B$3:$AO$3,0)),"") -> 0.068 | R4: =IFERROR(INDEX('Avoided Costs'!$B$4:$AO$10,MATCH($A4,'Avoided Costs'!$A$4:$A$10,0),MATCH(R$3,'Avoided Costs'!$B$3:$AO$3,0)),"") -> 0.07 | S4: =IFERROR(INDEX('Avoided Costs'!$B$4:$AO$10,MATCH($A4,'Avoided Costs'!$A$4:$A$10,0),MATCH(S$3,'Avoided Costs'!$B$3:$AO$3,0)),"") -> 0.071 | T4: =IFERROR(INDEX('Avoided Costs'!$B$4:$AO$10,MATCH($A4,'Avoided Costs'!$A$4:$A$10,0),MATCH(T$3,'Avoided Costs'!$B$3:$AO$3,0)),"") -> 0.073 | U4: =IFERROR(INDEX('Avoided Costs'!$B$4:$AO$10,MATCH($A4,'Avoided Costs'!$A$4:$A$10,0),MATCH(U$3,'Avoided Costs'!$B$3:$AO$3,0)),"") -> 0.074 | V4: =IFERROR(INDEX('Avoided Costs'!$B$4:$AO$10,MATCH($A4,'Avoided Costs'!$A$4:$A$10,0),MATCH(V$3,'Avoided Costs'!$B$3:$AO$3,0)),"") -> 0.076 | W4: =IFERROR(INDEX('Avoided Costs'!$B$4:$AO$10,MATCH($A4,'Avoided Costs'!$A$4:$A$10,0),MATCH(W$3,'Avoided Costs'!$B$3:$AO$3,0)),"") -> 0.077 | X4: =IFERROR(INDEX('Avoided Costs'!$B$4:$AO$10,MATCH($A4,'Avoided Costs'!$A$4:$A$10,0),MATCH(X$3,'Avoided Costs'!$B$3:$AO$3,0)),"") -> 0.079 | Y4: =IFERROR(INDEX('Avoided Costs'!$B$4:$AO$10,MATCH($A4,'Avoided Costs'!$A$4:$A$10,0),MATCH(Y$3,'Avoided Costs'!$B$3:$AO$3,0)),"") -> 0.08 | Z4: =IFERROR(INDEX('Avoided Costs'!$B$4:$AO$10,MATCH($A4,'Avoided Costs'!$A$4:$A$10,0),MATCH(Z$3,'Avoided Costs'!$B$3:$AO$3,0)),"") -> 0.082 | AA4: =IFERROR(INDEX('Avoided Costs'!$B$4:$AO$10,MATCH($A4,'Avoided Costs'!$A$4:$A$10,0),MATCH(AA$3,'Avoided Costs'!$B$3:$AO$3,0)),"") -> 0.083 | AB4: =IFERROR(INDEX('Avoided Costs'!$B$4:$AO$10,MATCH($A4,'Avoided Costs'!$A$4:$A$10,0),MATCH(AB$3,'Avoided Costs'!$B$3:$AO$3,0)),"") -> 0.085 | AC4: =IFERROR(INDEX('Avoided Costs'!$B$4:$AO$10,MATCH($A4,'Avoided Costs'!$A$4:$A$10,0),MATCH(AC$3,'Avoided Costs'!$B$3:$AO$3,0)),"") -> 0.087 | AD4: =IFERROR(INDEX('Avoided Costs'!$B$4:$AO$10,MATCH($A4,'Avoided Costs'!$A$4:$A$10,0),MATCH(AD$3,'Avoided Costs'!$B$3:$AO$3,0)),"") -> 0.089 | AE4: =IFERROR(INDEX('Avoided Costs'!$B$4:$AO$10,MATCH($A4,'Avoided Costs'!$A$4:$A$10,0),MATCH(AE$3,'Avoided Costs'!$B$3:$AO$3,0)),"") -> 0.09
A5: Refrigeration | B5: =IFERROR(INDEX('Avoided Costs'!$B$4:$AO$10,MATCH($A5,'Avoided Costs'!$A$4:$A$10,0),MATCH(B$3,'Avoided Costs'!$B$3:$AO$3,0)),"") -> 0.047 | C5: =IFERROR(INDEX('Avoided Costs'!$B$4:$AO$10,MATCH($A5,'Avoided Costs'!$A$4:$A$10,0),MATCH(C$3,'Avoided Costs'!$B$3:$AO$3,0)),"") -> 0.048 | D5: =IFERROR(INDEX('Avoided Costs'!$B$4:$AO$10,MATCH($A5,'Avoided Costs'!$A$4:$A$10,0),MATCH(D$3,'Avoided Costs'!$B$3:$AO$3,0)),"") -> 0.049 | E5: =IFERROR(INDEX('Avoided Costs'!$B$4:$AO$10,MATCH($A5,'Avoided Costs'!$A$4:$A$10,0),MATCH(E$3,'Avoided Costs'!$B$3:$AO$3,0)),"") -> 0.05 | F5: =IFERROR(INDEX('Avoided Costs'!$B$4:$AO$10,MATCH($A5,'Avoided Costs'!$A$4:$A$10,0),MATCH(F$3,'Avoided Costs'!$B$3:$AO$3,0)),"") -> 0.051 | G5: =IFERROR(INDEX('Avoided Costs'!$B$4:$AO$10,MATCH($A5,'Avoided Costs'!$A$4:$A$10,0),MATCH(G$3,'Avoided Costs'!$B$3:$AO$3,0)),"") -> 0.052 | H5: =IFERROR(INDEX('Avoided Costs'!$B$4:$AO$10,MATCH($A5,'Avoided Costs'!$A$4:$A$10,0),MATCH(H$3,'Avoided Costs'!$B$3:$AO$3,0)),"") -> 0.053 | I5: =IFERROR(INDEX('Avoided Costs'!$B$4:$AO$10,MATCH($A5,'Avoided Costs'!$A$4:$A$10,0),MATCH(I$3,'Avoided Costs'!$B$3:$AO$3,0)),"") -> 0.054 | J5: =IFERROR(INDEX('Avoided Costs'!$B$4:$AO$10,MATCH($A5,'Avoided Costs'!$A$4:$A$10,0),MATCH(J$3,'Avoided Costs'!$B$3:$AO$3,0)),"") -> 0.055 | K5: =IFERROR(INDEX('Avoided Costs'!$B$4:$AO$10,MATCH($A5,'Avoided Costs'!$A$4:$A$10,0),MATCH(K$3,'Avoided Costs'!$B$3:$AO$3,0)),"") -> 0.056 | L5: =IFERROR(INDEX('Avoided Costs'!$B$4:$AO$10,MATCH($A5,'Avoided Costs'!$A$4:$A$10,0),MATCH(L$3,'Avoided Costs'!$B$3:$AO$3,0)),"") -> 0.057 | M5: =IFERROR(INDEX('Avoided Costs'!$B$4:$AO$10,MATCH($A5,'Avoided Costs'!$A$4:$A$10,0),MATCH(M$3,'Avoided Costs'!$B$3:$AO$3,0)),"") -> 0.058 | N5: =IFERROR(INDEX('Avoided Costs'!$B$4:$AO$10,MATCH($A5,'Avoided Costs'!$A$4:$A$10,0),MATCH(N$3,'Avoided Costs'!$B$3:$AO$3,0)),"") -> 0.059 | O5: =IFERROR(INDEX('Avoided Costs'!$B$4:$AO$10,MATCH($A5,'Avoided Costs'!$A$4:$A$10,0),MATCH(O$3,'Avoided Costs'!$B$3:$AO$3,0)),"") -> 0.061 | P5: =IFERROR(INDEX('Avoided Costs'!$B$4:$AO$10,MATCH($A5,'Avoided Costs'!$A$4:$A$10,0),MATCH(P$3,'Avoided Costs'!$B$3:$AO$3,0)),"") -> 0.062 | Q5: =IFERROR(INDEX('Avoided Costs'!$B$4:$AO$10,MATCH($A5,'Avoided Costs'!$A$4:$A$10,0),MATCH(Q$3,'Avoided Costs'!$B$3:$AO$3,0)),"") -> 0.063 | R5: =IFERROR(INDEX('Avoided Costs'!$B$4:$AO$10,MATCH($A5,'Avoided Costs'!$A$4:$A$10,0),MATCH(R$3,'Avoided Costs'!$B$3:$AO$3,0)),"") -> 0.064 | S5: =IFERROR(INDEX('Avoided Costs'!$B$4:$AO$10,MATCH($A5,'Avoided Costs'!$A$4:$A$10,0),MATCH(S$3,'Avoided Costs'!$B$3:$AO$3,0)),"") -> 0.066 | T5: =IFERROR(INDEX('Avoided Costs'!$B$4:$AO$10,MATCH($A5,'Avoided Costs'!$A$4:$A$10,0),MATCH(T$3,'Avoided Costs'!$B$3:$AO$3,0)),"") -> 0.067 | U5: =IFERROR(INDEX('Avoided Costs'!$B$4:$AO$10,MATCH($A5,'Avoided Costs'!$A$4:$A$10,0),MATCH(U$3,'Avoided Costs'!$B$3:$AO$3,0)),"") -> 0.068 | V5: =IFERROR(INDEX('Avoided Costs'!$B$4:$AO$10,MATCH($A5,'Avoided Costs'!$A$4:$A$10,0),MATCH(V$3,'Avoided Costs'!$B$3:$AO$3,0)),"") -> 0.07 | W5: =IFERROR(INDEX('Avoided Costs'!$B$4:$AO$10,MATCH($A5,'Avoided Costs'!$A$4:$A$10,0),MATCH(W$3,'Avoided Costs'!$B$3:$AO$3,0)),"") -> 0.071 | X5: =IFERROR(INDEX('Avoided Costs'!$B$4:$AO$10,MATCH($A5,'Avoided Costs'!$A$4:$A$10,0),MATCH(X$3,'Avoided Costs'!$B$3:$AO$3,0)),"") -> 0.072 | Y5: =IFERROR(INDEX('Avoided Costs'!$B$4:$AO$10,MATCH($A5,'Avoided Costs'!$A$4:$A$10,0),MATCH(Y$3,'Avoided Costs'!$B$3:$AO$3,0)),"") -> 0.074 | Z5: =IFERROR(INDEX('Avoided Costs'!$B$4:$AO$10,MATCH($A5,'Avoided Costs'!$A$4:$A$10,0),MATCH(Z$3,'Avoided Costs'!$B$3:$AO$3,0)),"") -> 0.075 | AA5: =IFERROR(INDEX('Avoided Costs'!$B$4:$AO$10,MATCH($A5,'Avoided Costs'!$A$4:$A$10,0),MATCH(AA$3,'Avoided Costs'!$B$3:$AO$3,0)),"") -> 0.077 | AB5: =IFERROR(INDEX('Avoided Costs'!$B$4:$AO$10,MATCH($A5,'Avoided Costs'!$A$4:$A$10,0),MATCH(AB$3,'Avoided Costs'!$B$3:$AO$3,0)),"") -> 0.078 | AC5: =IFERROR(INDEX('Avoided Costs'!$B$4:$AO$10,MATCH($A5,'Avoided Costs'!$A$4:$A$10,0),MATCH(AC$3,'Avoided Costs'!$B$3:$AO$3,0)),"") -> 0.08 | AD5: =IFERROR(INDEX('Avoided Costs'!$B$4:$AO$10,MATCH($A5,'Avoided Costs'!$A$4:$A$10,0),MATCH(AD$3,'Avoided Costs'!$B$3:$AO$3,0)),"") -> 0.082 | AE5: =IFERROR(INDEX('Avoided Costs'!$B$4:$AO$10,MATCH($A5,'Avoided Costs'!$A$4:$A$10,0),MATCH(AE$3,'Avoided Costs'!$B$3:$AO$3,0)),"") -> 0.083
A6: Heating and Cooling | B6: =IFERROR(INDEX('Avoided Costs'!$B$4:$AO$10,MATCH($A6,'Avoided Costs'!$A$4:$A$10,0),MATCH(B$3,'Avoided Costs'!$B$3:$AO$3,0)),"") -> 0.056 | C6: =IFERROR(INDEX('Avoided Costs'!$B$4:$AO$10,MATCH($A6,'Avoided Costs'!$A$4:$A$10,0),MATCH(C$3,'Avoided Costs'!$B$3:$AO$3,0)),"") -> 0.057 | D6: =IFERROR(INDEX('Avoided Costs'!$B$4:$AO$10,MATCH($A6,'Avoided Costs'!$A$4:$A$10,0),MATCH(D$3,'Avoided Costs'!$B$3:$AO$3,0)),"") -> 0.058 | E6: =IFERROR(INDEX('Avoided Costs'!$B$4:$AO$10,MATCH($A6,'Avoided Costs'!$A$4:$A$10,0),MATCH(E$3,'Avoided Costs'!$B$3:$AO$3,0)),"") -> 0.059 | F6: =IFERROR(INDEX('Avoided Costs'!$B$4:$AO$10,MATCH($A6,'Avoided Costs'!$A$4:$A$10,0),MATCH(F$3,'Avoided Costs'!$B$3:$AO$3,0)),"") -> 0.06 | G6: =IFERROR(INDEX('Avoided Costs'!$B$4:$AO$10,MATCH($A6,'Avoided Costs'!$A$4:$A$10,0),MATCH(G$3,'Avoided Costs'!$B$3:$AO$3,0)),"") -> 0.061 | H6: =IFERROR(INDEX('Avoided Costs'!$B$4:$AO$10,MATCH($A6,'Avoided Costs'!$A$4:$A$10,0),MATCH(H$3,'Avoided Costs'!$B$3:$AO$3,0)),"") -> 0.063 | I6: =IFERROR(INDEX('Avoided Costs'!$B$4:$AO$10,MATCH($A6,'Avoided Costs'!$A$4:$A$10,0),MATCH(I$3,'Avoided Costs'!$B$3:$AO$3,0)),"") -> 0.064 | J6: =IFERROR(INDEX('Avoided Costs'!$B$4:$AO$10,MATCH($A6,'Avoided Costs'!$A$4:$A$10,0),MATCH(J$3,'Avoided Costs'!$B$3:$AO$3,0)),"") -> 0.065 | K6: =IFERROR(INDEX('Avoided Costs'!$B$4:$AO$10,MATCH($A6,'Avoided Costs'!$A$4:$A$10,0),MATCH(K$3,'Avoided Costs'!$B$3:$AO$3,0)),"") -> 0.066 | L6: =IFERROR(INDEX('Avoided Costs'!$B$4:$AO$10,MATCH($A6,'Avoided Costs'!$A$4:$A$10,0),MATCH(L$3,'Avoided Costs'!$B$3:$AO$3,0)),"") -> 0.068 | M6: =IFERROR(INDEX('Avoided Costs'!$B$4:$AO$10,MATCH($A6,'Avoided Costs'!$A$4:$A$10,0),MATCH(M$3,'Avoided Costs'!$B$3:$AO$3,0)),"") -> 0.069 | N6: =IFERROR(INDEX('Avoided Costs'!$B$4:$AO$10,MATCH($A6,'Avoided Costs'!$A$4:$A$10,0),MATCH(N$3,'Avoided Costs'!$B$3:$AO$3,0)),"") -> 0.07 | O6: =IFERROR(INDEX('Avoided Costs'!$B$4:$AO$10,MATCH($A6,'Avoided Costs'!$A$4:$A$10,0),MATCH(O$3,'Avoided Costs'!$B$3:$AO$3,0)),"") -> 0.072 | P6: =IFERROR(INDEX('Avoided Costs'!$B$4:$AO$10,MATCH($A6,'Avoided Costs'!$A$4:$A$10,0),MATCH(P$3,'Avoided Costs'!$B$3:$AO$3,0)),"") -> 0.073 | Q6: =IFERROR(INDEX('Avoided Costs'!$B$4:$AO$10,MATCH($A6,'Avoided Costs'!$A$4:$A$10,0),MATCH(Q$3,'Avoided Costs'!$B$3:$AO$3,0)),"") -> 0.075 | R6: =IFERROR(INDEX('Avoided Costs'!$B$4:$AO$10,MATCH($A6,'Avoided Costs'!$A$4:$A$10,0),MATCH(R$3,'Avoided Costs'!$B$3:$AO$3,0)),"") -> 0.076 | S6: =IFERROR(INDEX('Avoided Costs'!$B$4:$AO$10,MATCH($A6,'Avoided Costs'!$A$4:$A$10,0),MATCH(S$3,'Avoided Costs'!$B$3:$AO$3,0)),"") -> 0.078 | T6: =IFERROR(INDEX('Avoided Costs'!$B$4:$AO$10,MATCH($A6,'Avoided Costs'!$A$4:$A$10,0),MATCH(T$3,'Avoided Costs'!$B$3:$AO$3,0)),"") -> 0.079 | U6: =IFERROR(INDEX('Avoided Costs'!$B$4:$AO$10,MATCH($A6,'Avoided Costs'!$A$4:$A$10,0),MATCH(U$3,'Avoided Costs'!$B$3:$AO$3,0)),"") -> 0.081 | V6: =IFERROR(INDEX('Avoided Costs'!$B$4:$AO$10,MATCH($A6,'Avoided Costs'!$A$4:$A$10,0),MATCH(V$3,'Avoided Costs'!$B$3:$AO$3,0)),"") -> 0.083 | W6: =IFERROR(INDEX('Avoided Costs'!$B$4:$AO$10,MATCH($A6,'Avoided Costs'!$A$4:$A$10,0),MATCH(W$3,'Avoided Costs'!$B$3:$AO$3,0)),"") -> 0.084 | X6: =IFERROR(INDEX('Avoided Costs'!$B$4:$AO$10,MATCH($A6,'Avoided Costs'!$A$4:$A$10,0),MATCH(X$3,'Avoided Costs'!$B$3:$AO$3,0)),"") -> 0.086 | Y6: =IFERROR(INDEX('Avoided Costs'!$B$4:$AO$10,MATCH($A6,'Avoided Costs'!$A$4:$A$10,0),MATCH(Y$3,'Avoided Costs'!$B$3:$AO$3,0)),"") -> 0.088 | Z6: =IFERROR(INDEX('Avoided Costs'!$B$4:$AO$10,MATCH($A6,'Avoided Costs'!$A$4:$A$10,0),MATCH(Z$3,'Avoided Costs'!$B$3:$AO$3,0)),"") -> 0.089 | AA6: =IFERROR(INDEX('Avoided Costs'!$B$4:$AO$10,MATCH($A6,'Avoided Costs'!$A$4:$A$10,0),MATCH(AA$3,'Avoided Costs'!$B$3:$AO$3,0)),"") -> 0.091 | AB6: =IFERROR(INDEX('Avoided Costs'!$B$4:$AO$10,MATCH($A6,'Avoided Costs'!$A$4:$A$10,0),MATCH(AB$3,'Avoided Costs'!$B$3:$AO$3,0)),"") -> 0.093 | AC6: =IFERROR(INDEX('Avoided Costs'!$B$4:$AO$10,MATCH($A6,'Avoided Costs'!$A$4:$A$10,0),MATCH(AC$3,'Avoided Costs'!$B$3:$AO$3,0)),"") -> 0.095 | AD6: =IFERROR(INDEX('Avoided Costs'!$B$4:$AO$10,MATCH($A6,'Avoided Costs'!$A$4:$A$10,0),MATCH(AD$3,'Avoided Costs'!$B$3:$AO$3,0)),"") -> 0.097 | AE6: =IFERROR(INDEX('Avoided Costs'!$B$4:$AO$10,MATCH($A6,'Avoided Costs'!$A$4:$A$10,0),MATCH(AE$3,'Avoided Costs'!$B$3:$AO$3,0)),"") -> 0.099
A7: Cooling | B7: =IFERROR(INDEX('Avoided Costs'!$B$4:$AO$10,MATCH($A7,'Avoided Costs'!$A$4:$A$10,0),MATCH(B$3,'Avoided Costs'!$B$3:$AO$3,0)),"") -> 0.056 | C7: =IFERROR(INDEX('Avoided Costs'!$B$4:$AO$10,MATCH($A7,'Avoided Costs'!$A$4:$A$10,0),MATCH(C$3,'Avoided Costs'!$B$3:$AO$3,0)),"") -> 0.057 | D7: =IFERROR(INDEX('Avoided Costs'!$B$4:$AO$10,MATCH($A7,'Avoided Costs'!$A$4:$A$10,0),MATCH(D$3,'Avoided Costs'!$B$3:$AO$3,0)),"") -> 0.058 | E7: =IFERROR(INDEX('Avoided Costs'!$B$4:$AO$10,MATCH($A7,'Avoided Costs'!$A$4:$A$10,0),MATCH(E$3,'Avoided Costs'!$B$3:$AO$3,0)),"") -> 0.059 | F7: =IFERROR(INDEX('Avoided Costs'!$B$4:$AO$10,MATCH($A7,'Avoided Costs'!$A$4:$A$10,0),MATCH(F$3,'Avoided Costs'!$B$3:$AO$3,0)),"") -> 0.06 | G7: =IFERROR(INDEX('Avoided Costs'!$B$4:$AO$10,MATCH($A7,'Avoided Costs'!$A$4:$A$10,0),MATCH(G$3,'Avoided Costs'!$B$3:$AO$3,0)),"") -> 0.062 | H7: =IFERROR(INDEX('Avoided Costs'!$B$4:$AO$10,MATCH($A7,'Avoided Costs'!$A$4:$A$10,0),MATCH(H$3,'Avoided Costs'!$B$3:$AO$3,0)),"") -> 0.063 | I7: =IFERROR(INDEX('Avoided Costs'!$B$4:$AO$10,MATCH($A7,'Avoided Costs'!$A$4:$A$10,0),MATCH(I$3,'Avoided Costs'!$B$3:$AO$3,0)),"") -> 0.064 | J7: =IFERROR(INDEX('Avoided Costs'!$B$4:$AO$10,MATCH($A7,'Avoided Costs'!$A$4:$A$10,0),MATCH(J$3,'Avoided Costs'!$B$3:$AO$3,0)),"") -> 0.065 | K7: =IFERROR(INDEX('Avoided Costs'!$B$4:$AO$10,MATCH($A7,'Avoided Costs'!$A$4:$A$10,0),MATCH(K$3,'Avoided Costs'!$B$3:$AO$3,0)),"") -> 0.067 | L7: =IFERROR(INDEX('Avoided Costs'!$B$4:$AO$10,MATCH($A7,'Avoided Costs'!$A$4:$A$10,0),MATCH(L$3,'Avoided Costs'!$B$3:$AO$3,0)),"") -> 0.068 | M7: =IFERROR(INDEX('Avoided Costs'!$B$4:$AO$10,MATCH($A7,'Avoided Costs'!$A$4:$A$10,0),MATCH(M$3,'Avoided Costs'!$B$3:$AO$3,0)),"") -> 0.069 | N7: =IFERROR(INDEX('Avoided Costs'!$B$4:$AO$10,MATCH($A7,'Avoided Costs'!$A$4:$A$10,0),MATCH(N$3,'Avoided Costs'!$B$3:$AO$3,0)),"") -> 0.071 | O7: =IFERROR(INDEX('Avoided Costs'!$B$4:$AO$10,MATCH($A7,'Avoided Costs'!$A$4:$A$10,0),MATCH(O$3,'Avoided Costs'!$B$3:$AO$3,0)),"") -> 0.072 | P7: =IFERROR(INDEX('Avoided Costs'!$B$4:$AO$10,MATCH($A7,'Avoided Costs'!$A$4:$A$10,0),MATCH(P$3,'Avoided Costs'!$B$3:$AO$3,0)),"") -> 0.074 | Q7: =IFERROR(INDEX('Avoided Costs'!$B$4:$AO$10,MATCH($A7,'Avoided Costs'!$A$4:$A$10,0),MATCH(Q$3,'Avoided Costs'!$B$3:$AO$3,0)),"") -> 0.075 | R7: =IFERROR(INDEX('Avoided Costs'!$B$4:$AO$10,MATCH($A7,'Avoided Costs'!$A$4:$A$10,0),MATCH(R$3,'Avoided Costs'!$B$3:$AO$3,0)),"") -> 0.077 | S7: =IFERROR(INDEX('Avoided Costs'!$B$4:$AO$10,MATCH($A7,'Avoided Costs'!$A$4:$A$10,0),MATCH(S$3,'Avoided Costs'!$B$3:$AO$3,0)),"") -> 0.078 | T7: =IFERROR(INDEX('Avoided Costs'!$B$4:$AO$10,MATCH($A7,'Avoided Costs'!$A$4:$A$10,0),MATCH(T$3,'Avoided Costs'!$B$3:$AO$3,0)),"") -> 0.08 | U7: =IFERROR(INDEX('Avoided Costs'!$B$4:$AO$10,MATCH($A7,'Avoided Costs'!$A$4:$A$10,0),MATCH(U$3,'Avoided Costs'!$B$3:$AO$3,0)),"") -> 0.081 | V7: =IFERROR(INDEX('Avoided Costs'!$B$4:$AO$10,MATCH($A7,'Avoided Costs'!$A$4:$A$10,0),MATCH(V$3,'Avoided Costs'!$B$3:$AO$3,0)),"") -> 0.083 | W7: =IFERROR(INDEX('Avoided Costs'!$B$4:$AO$10,MATCH($A7,'Avoided Costs'!$A$4:$A$10,0),MATCH(W$3,'Avoided Costs'!$B$3:$AO$3,0)),"") -> 0.085 | X7: =IFERROR(INDEX('Avoided Costs'!$B$4:$AO$10,MATCH($A7,'Avoided Costs'!$A$4:$A$10,0),MATCH(X$3,'Avoided Costs'!$B$3:$AO$3,0)),"") -> 0.086 | Y7: =IFERROR(INDEX('Avoided Costs'!$B$4:$AO$10,MATCH($A7,'Avoided Costs'!$A$4:$A$10,0),MATCH(Y$3,'Avoided Costs'!$B$3:$AO$3,0)),"") -> 0.088 | Z7: =IFERROR(INDEX('Avoided Costs'!$B$4:$AO$10,MATCH($A7,'Avoided Costs'!$A$4:$A$10,0),MATCH(Z$3,'Avoided Costs'!$B$3:$AO$3,0)),"") -> 0.09 | AA7: =IFERROR(INDEX('Avoided Costs'!$B$4:$AO$10,MATCH($A7,'Avoided Costs'!$A$4:$A$10,0),MATCH(AA$3,'Avoided Costs'!$B$3:$AO$3,0)),"") -> 0.092 | AB7: =IFERROR(INDEX('Avoided Costs'!$B$4:$AO$10,MATCH($A7,'Avoided Costs'!$A$4:$A$10,0),MATCH(AB$3,'Avoided Costs'!$B$3:$AO$3,0)),"") -> 0.093 | AC7: =IFERROR(INDEX('Avoided Costs'!$B$4:$AO$10,MATCH($A7,'Avoided Costs'!$A$4:$A$10,0),MATCH(AC$3,'Avoided Costs'!$B$3:$AO$3,0)),"") -> 0.095 | AD7: =IFERROR(INDEX('Avoided Costs'!$B$4:$AO$10,MATCH($A7,'Avoided Costs'!$A$4:$A$10,0),MATCH(AD$3,'Avoided Costs'!$B$3:$AO$3,0)),"") -> 0.097 | AE7: =IFERROR(INDEX('Avoided Costs'!$B$4:$AO$10,MATCH($A7,'Avoided Costs'!$A$4:$A$10,0),MATCH(AE$3,'Avoided Costs'!$B$3:$AO$3,0)),"") -> 0.099
A8: Water Heating | B8: =IFERROR(INDEX('Avoided Costs'!$B$4:$AO$10,MATCH($A8,'Avoided Costs'!$A$4:$A$10,0),MATCH(B$3,'Avoided Costs'!$B$3:$AO$3,0)),"") -> 0.052 | C8: =IFERROR(INDEX('Avoided Costs'!$B$4:$AO$10,MATCH($A8,'Avoided Costs'!$A$4:$A$10,0),MATCH(C$3,'Avoided Costs'!$B$3:$AO$3,0)),"") -> 0.053 | D8: =IFERROR(INDEX('Avoided Costs'!$B$4:$AO$10,MATCH($A8,'Avoided Costs'!$A$4:$A$10,0),MATCH(D$3,'Avoided Costs'!$B$3:$AO$3,0)),"") -> 0.054 | E8: =IFERROR(INDEX('Avoided Costs'!$B$4:$AO$10,MATCH($A8,'Avoided Costs'!$A$4:$A$10,0),MATCH(E$3,'Avoided Costs'!$B$3:$AO$3,0)),"") -> 0.055 | F8: =IFERROR(INDEX('Avoided Costs'!$B$4:$AO$10,MATCH($A8,'Avoided Costs'!$A$4:$A$10,0),MATCH(F$3,'Avoided Costs'!$B$3:$AO$3,0)),"") -> 0.056 | G8: =IFERROR(INDEX('Avoided Costs'!$B$4:$AO$10,MATCH($A8,'Avoided Costs'!$A$4:$A$10,0),MATCH(G$3,'Avoided Costs'!$B$3:$AO$3,0)),"") -> 0.057 | H8: =IFERROR(INDEX('Avoided Costs'!$B$4:$AO$10,MATCH($A8,'Avoided Costs'!$A$4:$A$10,0),MATCH(H$3,'Avoided Costs'!$B$3:$AO$3,0)),"") -> 0.058 | I8: =IFERROR(INDEX('Avoided Costs'!$B$4:$AO$10,MATCH($A8,'Avoided Costs'!$A$4:$A$10,0),MATCH(I$3,'Avoided Costs'!$B$3:$AO$3,0)),"") -> 0.06 | J8: =IFERROR(INDEX('Avoided Costs'!$B$4:$AO$10,MATCH($A8,'Avoided Costs'!$A$4:$A$10,0),MATCH(J$3,'Avoided Costs'!$B$3:$AO$3,0)),"") -> 0.061 | K8: =IFERROR(INDEX('Avoided Costs'!$B$4:$AO$10,MATCH($A8,'Avoided Costs'!$A$4:$A$10,0),MATCH(K$3,'Avoided Costs'!$B$3:$AO$3,0)),"") -> 0.062 | L8: =IFERROR(INDEX('Avoided Costs'!$B$4:$AO$10,MATCH($A8,'Avoided Costs'!$A$4:$A$10,0),MATCH(L$3,'Avoided Costs'!$B$3:$AO$3,0)),"") -> 0.063 | M8: =IFERROR(INDEX('Avoided Costs'!$B$4:$AO$10,MATCH($A8,'Avoided Costs'!$A$4:$A$10,0),MATCH(M$3,'Avoided Costs'!$B$3:$AO$3,0)),"") -> 0.064 | N8: =IFERROR(INDEX('Avoided Costs'!$B$4:$AO$10,MATCH($A8,'Avoided Costs'!$A$4:$A$10,0),MATCH(N$3,'Avoided Costs'!$B$3:$AO$3,0)),"") -> 0.066 | O8: =IFERROR(INDEX('Avoided Costs'!$B$4:$AO$10,MATCH($A8,'Avoided Costs'!$A$4:$A$10,0),MATCH(O$3,'Avoided Costs'!$B$3:$AO$3,0)),"") -> 0.067 | P8: =IFERROR(INDEX('Avoided Costs'!$B$4:$AO$10,MATCH($A8,'Avoided Costs'!$A$4:$A$10,0),MATCH(P$3,'Avoided Costs'!$B$3:$AO$3,0)),"") -> 0.068 | Q8: =IFERROR(INDEX('Avoided Costs'!$B$4:$AO$10,MATCH($A8,'Avoided Costs'!$A$4:$A$10,0),MATCH(Q$3,'Avoided Costs'!$B$3:$AO$3,0)),"") -> 0.07 | R8: =IFERROR(INDEX('Avoided Costs'!$B$4:$AO$10,MATCH($A8,'Avoided Costs'!$A$4:$A$10,0),MATCH(R$3,'Avoided Costs'!$B$3:$AO$3,0)),"") -> 0.071 | S8: =IFERROR(INDEX('Avoided Costs'!$B$4:$AO$10,MATCH($A8,'Avoided Costs'!$A$4:$A$10,0),MATCH(S$3,'Avoided Costs'!$B$3:$AO$3,0)),"") -> 0.073 | T8: =IFERROR(INDEX('Avoided Costs'!$B$4:$AO$10,MATCH($A8,'Avoided Costs'!$A$4:$A$10,0),MATCH(T$3,'Avoided Costs'!$B$3:$AO$3,0)),"") -> 0.074 | U8: =IFERROR(INDEX('Avoided Costs'!$B$4:$AO$10,MATCH($A8,'Avoided Costs'!$A$4:$A$10,0),MATCH(U$3,'Avoided Costs'!$B$3:$AO$3,0)),"") -> 0.075 | V8: =IFERROR(INDEX('Avoided Costs'!$B$4:$AO$10,MATCH($A8,'Avoided Costs'!$A$4:$A$10,0),MATCH(V$3,'Avoided Costs'!$B$3:$AO$3,0)),"") -> 0.077 | W8: =IFERROR(INDEX('Avoided Costs'!$B$4:$AO$10,MATCH($A8,'Avoided Costs'!$A$4:$A$10,0),MATCH(W$3,'Avoided Costs'!$B$3:$AO$3,0)),"") -> 0.079 | X8: =IFERROR(INDEX('Avoided Costs'!$B$4:$AO$10,MATCH($A8,'Avoided Costs'!$A$4:$A$10,0),MATCH(X$3,'Avoided Costs'!$B$3:$AO$3,0)),"") -> 0.08 | Y8: =IFERROR(INDEX('Avoided Costs'!$B$4:$AO$10,MATCH($A8,'Avoided Costs'!$A$4:$A$10,0),MATCH(Y$3,'Avoided Costs'!$B$3:$AO$3,0)),"") -> 0.082 | Z8: =IFERROR(INDEX('Avoided Costs'!$B$4:$AO$10,MATCH($A8,'Avoided Costs'!$A$4:$A$10,0),MATCH(Z$3,'Avoided Costs'!$B$3:$AO$3,0)),"") -> 0.083 | AA8: =IFERROR(INDEX('Avoided Costs'!$B$4:$AO$10,MATCH($A8,'Avoided Costs'!$A$4:$A$10,0),MATCH(AA$3,'Avoided Costs'!$B$3:$AO$3,0)),"") -> 0.085 | AB8: =IFERROR(INDEX('Avoided Costs'!$B$4:$AO$10,MATCH($A8,'Avoided Costs'!$A$4:$A$10,0),MATCH(AB$3,'Avoided Costs'!$B$3:$AO$3,0)),"") -> 0.087 | AC8: =IFERROR(INDEX('Avoided Costs'!$B$4:$AO$10,MATCH($A8,'Avoided Costs'!$A$4:$A$10,0),MATCH(AC$3,'Avoided Costs'!$B$3:$AO$3,0)),"") -> 0.088 | AD8: =IFERROR(INDEX('Avoided Costs'!$B$4:$AO$10,MATCH($A8,'Avoided Costs'!$A$4:$A$10,0),MATCH(AD$3,'Avoided Costs'!$B$3:$AO$3,0)),"") -> 0.09 | AE8: =IFERROR(INDEX('Avoided Costs'!$B$4:$AO$10,MATCH($A8,'Avoided Costs'!$A$4:$A$10,0),MATCH(AE$3,'Avoided Costs'!$B$3:$AO$3,0)),"") -> 0.092
A9: Whole Facility | B9: =IFERROR(INDEX('Avoided Costs'!$B$4:$AO$10,MATCH($A9,'Avoided Costs'!$A$4:$A$10,0),MATCH(B$3,'Avoided Costs'!$B$3:$AO$3,0)),"") -> 0.052 | C9: =IFERROR(INDEX('Avoided Costs'!$B$4:$AO$10,MATCH($A9,'Avoided Costs'!$A$4:$A$10,0),MATCH(C$3,'Avoided Costs'!$B$3:$AO$3,0)),"") -> 0.053 | D9: =IFERROR(INDEX('Avoided Costs'!$B$4:$AO$10,MATCH($A9,'Avoided Costs'!$A$4:$A$10,0),MATCH(D$3,'Avoided Costs'!$B$3:$AO$3,0)),"") -> 0.055 | E9: =IFERROR(INDEX('Avoided Costs'!$B$4:$AO$10,MATCH($A9,'Avoided Costs'!$A$4:$A$10,0),MATCH(E$3,'Avoided Costs'!$B$3:$AO$3,0)),"") -> 0.056 | F9: =IFERROR(INDEX('Avoided Costs'!$B$4:$AO$10,MATCH($A9,'Avoided Costs'!$A$4:$A$10,0),MATCH(F$3,'Avoided Costs'!$B$3:$AO$3,0)),"") -> 0.057 | G9: =IFERROR(INDEX('Avoided Costs'!$B$4:$AO$10,MATCH($A9,'Avoided Costs'!$A$4:$A$10,0),MATCH(G$3,'Avoided Costs'!$B$3:$AO$3,0)),"") -> 0.058 | H9: =IFERROR(INDEX('Avoided Costs'!$B$4:$AO$10,MATCH($A9,'Avoided Costs'!$A$4:$A$10,0),MATCH(H$3,'Avoided Costs'!$B$3:$AO$3,0)),"") -> 0.059 | I9: =IFERROR(INDEX('Avoided Costs'!$B$4:$AO$10,MATCH($A9,'Avoided Costs'!$A$4:$A$10,0),MATCH(I$3,'Avoided Costs'!$B$3:$AO$3,0)),"") -> 0.06 | J9: =IFERROR(INDEX('Avoided Costs'!$B$4:$AO$10,MATCH($A9,'Avoided Costs'!$A$4:$A$10,0),MATCH(J$3,'Avoided Costs'!$B$3:$AO$3,0)),"") -> 0.061 | K9: =IFERROR(INDEX('Avoided Costs'!$B$4:$AO$10,MATCH($A9,'Avoided Costs'!$A$4:$A$10,0),MATCH(K$3,'Avoided Costs'!$B$3:$AO$3,0)),"") -> 0.063 | L9: =IFERROR(INDEX('Avoided Costs'!$B$4:$AO$10,MATCH($A9,'Avoided Costs'!$A$4:$A$10,0),MATCH(L$3,'Avoided Costs'!$B$3:$AO$3,0)),"") -> 0.064 | M9: =IFERROR(INDEX('Avoided Costs'!$B$4:$AO$10,MATCH($A9,'Avoided Costs'!$A$4:$A$10,0),MATCH(M$3,'Avoided Costs'!$B$3:$AO$3,0)),"") -> 0.065 | N9: =IFERROR(INDEX('Avoided Costs'!$B$4:$AO$10,MATCH($A9,'Avoided Costs'!$A$4:$A$10,0),MATCH(N$3,'Avoided Costs'!$B$3:$AO$3,0)),"") -> 0.067 | O9: =IFERROR(INDEX('Avoided Costs'!$B$4:$AO$10,MATCH($A9,'Avoided Costs'!$A$4:$A$10,0),MATCH(O$3,'Avoided Costs'!$B$3:$AO$3,0)),"") -> 0.068 | P9: =IFERROR(INDEX('Avoided Costs'!$B$4:$AO$10,MATCH($A9,'Avoided Costs'!$A$4:$A$10,0),MATCH(P$3,'Avoided Costs'!$B$3:$AO$3,0)),"") -> 0.069 | Q9: =IFERROR(INDEX('Avoided Costs'!$B$4:$AO$10,MATCH($A9,'Avoided Costs'!$A$4:$A$10,0),MATCH(Q$3,'Avoided Costs'!$B$3:$AO$3,0)),"") -> 0.071 | R9: =IFERROR(INDEX('Avoided Costs'!$B$4:$AO$10,MATCH($A9,'Avoided Costs'!$A$4:$A$10,0),MATCH(R$3,'Avoided Costs'!$B$3:$AO$3,0)),"") -> 0.072 | S9: =IFERROR(INDEX('Avoided Costs'!$B$4:$AO$10,MATCH($A9,'Avoided Costs'!$A$4:$A$10,0),MATCH(S$3,'Avoided Costs'!$B$3:$AO$3,0)),"") -> 0.073 | T9: =IFERROR(INDEX('Avoided Costs'!$B$4:$AO$10,MATCH($A9,'Avoided Costs'!$A$4:$A$10,0),MATCH(T$3,'Avoided Costs'!$B$3:$AO$3,0)),"") -> 0.075 | U9: =IFERROR(INDEX('Avoided Costs'!$B$4:$AO$10,MATCH($A9,'Avoided Costs'!$A$4:$A$10,0),MATCH(U$3,'Avoided Costs'!$B$3:$AO$3,0)),"") -> 0.076 | V9: =IFERROR(INDEX('Avoided Costs'!$B$4:$AO$10,MATCH($A9,'Avoided Costs'!$A$4:$A$10,0),MATCH(V$3,'Avoided Costs'!$B$3:$AO$3,0)),"") -> 0.078 | W9: =IFERROR(INDEX('Avoided Costs'!$B$4:$AO$10,MATCH($A9,'Avoided Costs'!$A$4:$A$10,0),MATCH(W$3,'Avoided Costs'!$B$3:$AO$3,0)),"") -> 0.079 | X9: =IFERROR(INDEX('Avoided Costs'!$B$4:$AO$10,MATCH($A9,'Avoided Costs'!$A$4:$A$10,0),MATCH(X$3,'Avoided Costs'!$B$3:$AO$3,0)),"") -> 0.081 | Y9: =IFERROR(INDEX('Avoided Costs'!$B$4:$AO$10,MATCH($A9,'Avoided Costs'!$A$4:$A$10,0),MATCH(Y$3,'Avoided Costs'!$B$3:$AO$3,0)),"") -> 0.083 | Z9: =IFERROR(INDEX('Avoided Costs'!$B$4:$AO$10,MATCH($A9,'Avoided Costs'!$A$4:$A$10,0),MATCH(Z$3,'Avoided Costs'!$B$3:$AO$3,0)),"") -> 0.084 | AA9: =IFERROR(INDEX('Avoided Costs'!$B$4:$AO$10,MATCH($A9,'Avoided Costs'!$A$4:$A$10,0),MATCH(AA$3,'Avoided Costs'!$B$3:$AO$3,0)),"") -> 0.086 | AB9: =IFERROR(INDEX('Avoided Costs'!$B$4:$AO$10,MATCH($A9,'Avoided Costs'!$A$4:$A$10,0),MATCH(AB$3,'Avoided Costs'!$B$3:$AO$3,0)),"") -> 0.088 | AC9: =IFERROR(INDEX('Avoided Costs'!$B$4:$AO$10,MATCH($A9,'Avoided Costs'!$A$4:$A$10,0),MATCH(AC$3,'Avoided Costs'!$B$3:$AO$3,0)),"") -> 0.09 | AD9: =IFERROR(INDEX('Avoided Costs'!$B$4:$AO$10,MATCH($A9,'Avoided Costs'!$A$4:$A$10,0),MATCH(AD$3,'Avoided Costs'!$B$3:$AO$3,0)),"") -> 0.091 | AE9: =IFERROR(INDEX('Avoided Costs'!$B$4:$AO$10,MATCH($A9,'Avoided Costs'!$A$4:$A$10,0),MATCH(AE$3,'Avoided Costs'!$B$3:$AO$3,0)),"") -> 0.093
A10: Capacity Avoided Cost ($/kW) | B10: =IFERROR(INDEX('Avoided Costs'!$B$4:$AO$10,MATCH($A10,'Avoided Costs'!$A$4:$A$10,0),MATCH(B$3,'Avoided Costs'!$B$3:$AO$3,0)),"") -> 85.8250272 | C10: =IFERROR(INDEX('Avoided Costs'!$B$4:$AO$10,MATCH($A10,'Avoided Costs'!$A$4:$A$10,0),MATCH(C$3,'Avoided Costs'!$B$3:$AO$3,0)),"") -> 90.64839372 | D10: =IFERROR(INDEX('Avoided Costs'!$B$4:$AO$10,MATCH($A10,'Avoided Costs'!$A$4:$A$10,0),MATCH(D$3,'Avoided Costs'!$B$3:$AO$3,0)),"") -> 95.74283345 | E10: =IFERROR(INDEX('Avoided Costs'!$B$4:$AO$10,MATCH($A10,'Avoided Costs'!$A$4:$A$10,0),MATCH(E$3,'Avoided Costs'!$B$3:$AO$3,0)),"") -> 101.1235807 | F10: =IFERROR(INDEX('Avoided Costs'!$B$4:$AO$10,MATCH($A10,'Avoided Costs'!$A$4:$A$10,0),MATCH(F$3,'Avoided Costs'!$B$3:$AO$3,0)),"") -> 106.8067259 | G10: =IFERROR(INDEX('Avoided Costs'!$B$4:$AO$10,MATCH($A10,'Avoided Costs'!$A$4:$A$10,0),MATCH(G$3,'Avoided Costs'!$B$3:$AO$3,0)),"") -> 112.8092639 | H10: =IFERROR(INDEX('Avoided Costs'!$B$4:$AO$10,MATCH($A10,'Avoided Costs'!$A$4:$A$10,0),MATCH(H$3,'Avoided Costs'!$B$3:$AO$3,0)),"") -> 119.1491446 | I10: =IFERROR(INDEX('Avoided Costs'!$B$4:$AO$10,MATCH($A10,'Avoided Costs'!$A$4:$A$10,0),MATCH(I$3,'Avoided Costs'!$B$3:$AO$3,0)),"") -> 125.8453265 | J10: =IFERROR(INDEX('Avoided Costs'!$B$4:$AO$10,MATCH($A10,'Avoided Costs'!$A$4:$A$10,0),MATCH(J$3,'Avoided Costs'!$B$3:$AO$3,0)),"") -> 132.9178338 | K10: =IFERROR(INDEX('Avoided Costs'!$B$4:$AO$10,MATCH($A10,'Avoided Costs'!$A$4:$A$10,0),MATCH(K$3,'Avoided Costs'!$B$3:$AO$3,0)),"") -> 140.3878161 | L10: =IFERROR(INDEX('Avoided Costs'!$B$4:$AO$10,MATCH($A10,'Avoided Costs'!$A$4:$A$10,0),MATCH(L$3,'Avoided Costs'!$B$3:$AO$3,0)),"") -> 148.2776114 | M10: =IFERROR(INDEX('Avoided Costs'!$B$4:$AO$10,MATCH($A10,'Avoided Costs'!$A$4:$A$10,0),MATCH(M$3,'Avoided Costs'!$B$3:$AO$3,0)),"") -> 156.6108131 | N10: =IFERROR(INDEX('Avoided Costs'!$B$4:$AO$10,MATCH($A10,'Avoided Costs'!$A$4:$A$10,0),MATCH(N$3,'Avoided Costs'!$B$3:$AO$3,0)),"") -> 165.4123408 | O10: =IFERROR(INDEX('Avoided Costs'!$B$4:$AO$10,MATCH($A10,'Avoided Costs'!$A$4:$A$10,0),MATCH(O$3,'Avoided Costs'!$B$3:$AO$3,0)),"") -> 174.7085144 | P10: =IFERROR(INDEX('Avoided Costs'!$B$4:$AO$10,MATCH($A10,'Avoided Costs'!$A$4:$A$10,0),MATCH(P$3,'Avoided Costs'!$B$3:$AO$3,0)),"") -> 184.5271329 | Q10: =IFERROR(INDEX('Avoided Costs'!$B$4:$AO$10,MATCH($A10,'Avoided Costs'!$A$4:$A$10,0),MATCH(Q$3,'Avoided Costs'!$B$3:$AO$3,0)),"") -> 194.8975577 | R10: =IFERROR(INDEX('Avoided Costs'!$B$4:$AO$10,MATCH($A10,'Avoided Costs'!$A$4:$A$10,0),MATCH(R$3,'Avoided Costs'!$B$3:$AO$3,0)),"") -> 205.8508005 | S10: =IFERROR(INDEX('Avoided Costs'!$B$4:$AO$10,MATCH($A10,'Avoided Costs'!$A$4:$A$10,0),MATCH(S$3,'Avoided Costs'!$B$3:$AO$3,0)),"") -> 217.4196155 | T10: =IFERROR(INDEX('Avoided Costs'!$B$4:$AO$10,MATCH($A10,'Avoided Costs'!$A$4:$A$10,0),MATCH(T$3,'Avoided Costs'!$B$3:$AO$3,0)),"") -> 229.6385979 | U10: =IFERROR(INDEX('Avoided Costs'!$B$4:$AO$10,MATCH($A10,'Avoided Costs'!$A$4:$A$10,0),MATCH(U$3,'Avoided Costs'!$B$3:$AO$3,0)),"") -> 242.5442871 | V10: =IFERROR(INDEX('Avoided Costs'!$B$4:$AO$10,MATCH($A10,'Avoided Costs'!$A$4:$A$10,0),MATCH(V$3,'Avoided Costs'!$B$3:$AO$3,0)),"") -> 256.175276 | W10: =IFERROR(INDEX('Avoided Costs'!$B$4:$AO$10,MATCH($A10,'Avoided Costs'!$A$4:$A$10,0),MATCH(W$3,'Avoided Costs'!$B$3:$AO$3,0)),"") -> 270.5723265 | X10: =IFERROR(INDEX('Avoided Costs'!$B$4:$AO$10,MATCH($A10,'Avoided Costs'!$A$4:$A$10,0),MATCH(X$3,'Avoided Costs'!$B$3:$AO$3,0)),"") -> 285.7784912 | Y10: =IFERROR(INDEX('Avoided Costs'!$B$4:$AO$10,MATCH($A10,'Avoided Costs'!$A$4:$A$10,0),MATCH(Y$3,'Avoided Costs'!$B$3:$AO$3,0)),"") -> 301.8392425 | Z10: =IFERROR(INDEX('Avoided Costs'!$B$4:$AO$10,MATCH($A10,'Avoided Costs'!$A$4:$A$10,0),MATCH(Z$3,'Avoided Costs'!$B$3:$AO$3,0)),"") -> 318.8026079 | AA10: =IFERROR(INDEX('Avoided Costs'!$B$4:$AO$10,MATCH($A10,'Avoided Costs'!$A$4:$A$10,0),MATCH(AA$3,'Avoided Costs'!$B$3:$AO$3,0)),"") -> 336.7193144 | AB10: =IFERROR(INDEX('Avoided Costs'!$B$4:$AO$10,MATCH($A10,'Avoided Costs'!$A$4:$A$10,0),MATCH(AB$3,'Avoided Costs'!$B$3:$AO$3,0)),"") -> 355.6429399 | AC10: =IFERROR(INDEX('Avoided Costs'!$B$4:$AO$10,MATCH($A10,'Avoided Costs'!$A$4:$A$10,0),MATCH(AC$3,'Avoided Costs'!$B$3:$AO$3,0)),"") -> 375.6300731 | AD10: =IFERROR(INDEX('Avoided Costs'!$B$4:$AO$10,MATCH($A10,'Avoided Costs'!$A$4:$A$10,0),MATCH(AD$3,'Avoided Costs'!$B$3:$AO$3,0)),"") -> 396.7404833 | AE10: =IFERROR(INDEX('Avoided Costs'!$B$4:$AO$10,MATCH($A10,'Avoided Costs'!$A$4:$A$10,0),MATCH(AE$3,'Avoided Costs'!$B$3:$AO$3,0)),"") -> 419.0372984
A13: NPV of Avoided Costs
A14: Energy End-Use / Measure Life | B14: 1 | C14: 2 | D14: 3 | E14: 4 | F14: 5 | G14: 6 | H14: 7 | I14: 8 | J14: 9 | K14: 10 | L14: 11 | M14: 12 | N14: 13 | O14: 14 | P14: 15 | Q14: 16 | R14: 17 | S14: 18 | T14: 19 | U14: 20 | V14: 21 | W14: 22 | X14: 23 | Y14: 24 | Z14: 25 | AA14: 26 | AB14: 27 | AC14: 28 | AD14: 29 | AE14: 30
A15: Lighting | B15: =EnergyLineLossFactor*NPV(DiscountRate,$B4:B4) -> 0.04980707247 | C15: =EnergyLineLossFactor*NPV(DiscountRate,$B4:C4) -> 0.09657351666 | D15: =EnergyLineLossFactor*NPV(DiscountRate,$B4:D4) -> 0.1404687178 | E15: =EnergyLineLossFactor*NPV(DiscountRate,$B4:E4) -> 0.1816542896 | F15: =EnergyLineLossFactor*NPV(DiscountRate,$B4:F4) -> 0.2202842441 | G15: =EnergyLineLossFactor*NPV(DiscountRate,$B4:G4) -> 0.2565051828 | H15: =EnergyLineLossFactor*NPV(DiscountRate,$B4:H4) -> 0.2904565053 | I15: =EnergyLineLossFactor*NPV(DiscountRate,$B4:I4) -> 0.3222706317 | J15: =EnergyLineLossFactor*NPV(DiscountRate,$B4:J4) -> 0.3525783628 | K15: =EnergyLineLossFactor*NPV(DiscountRate,$B4:K4) -> 0.3809537748 | L15: =EnergyLineLossFactor*NPV(DiscountRate,$B4:L4) -> 0.4075129264 | M15: =EnergyLineLossFactor*NPV(DiscountRate,$B4:M4) -> 0.4323656062 | N15: =EnergyLineLossFactor*NPV(DiscountRate,$B4:N4) -> 0.4556155987 | O15: =EnergyLineLossFactor*NPV(DiscountRate,$B4:O4) -> 0.4776954906 | P15: =EnergyLineLossFactor*NPV(DiscountRate,$B4:P4) -> 0.498336835 | Q15: =EnergyLineLossFactor*NPV(DiscountRate,$B4:Q4) -> 0.5176290572 | R15: =EnergyLineLossFactor*NPV(DiscountRate,$B4:R4) -> 0.535917703 | S15: =EnergyLineLossFactor*NPV(DiscountRate,$B4:S4) -> 0.5530002265 | T15: =EnergyLineLossFactor*NPV(DiscountRate,$B4:T4) -> 0.5691745715 | U15: =EnergyLineLossFactor*NPV(DiscountRate,$B4:U4) -> 0.5842734861 | V15: =EnergyLineLossFactor*NPV(DiscountRate,$B4:V4) -> 0.5985538006 | W15: =EnergyLineLossFactor*NPV(DiscountRate,$B4:W4) -> 0.6118775074 | X15: =EnergyLineLossFactor*NPV(DiscountRate,$B4:X4) -> 0.6244659384 | Y15: =EnergyLineLossFactor*NPV(DiscountRate,$B4:Y4) -> 0.636205305 | Z15: =EnergyLineLossFactor*NPV(DiscountRate,$B4:Z4) -> 0.6472862984 | AA15: =EnergyLineLossFactor*NPV(DiscountRate,$B4:AA4) -> 0.6576151753 | AB15: =EnergyLineLossFactor*NPV(DiscountRate,$B4:AB4) -> 0.6673561879 | AC15: =EnergyLineLossFactor*NPV(DiscountRate,$B4:AC4) -> 0.6765377082 | AD15: =EnergyLineLossFactor*NPV(DiscountRate,$B4:AD4) -> 0.6851872981 | AE15: =EnergyLineLossFactor*NPV(DiscountRate,$B4:AE4) -> 0.6932421617
A16: Refrigeration | B16: =EnergyLineLossFactor*NPV(DiscountRate,$B5:B5) -> 0.04590063542 | C16: =EnergyLineLossFactor*NPV(DiscountRate,$B5:C5) -> 0.08906966082 | D16: =EnergyLineLossFactor*NPV(DiscountRate,$B5:D5) -> 0.1296520166 | E16: =EnergyLineLossFactor*NPV(DiscountRate,$B5:E5) -> 0.1677868053 | F16: =EnergyLineLossFactor*NPV(DiscountRate,$B5:F5) -> 0.2036073086 | G16: =EnergyLineLossFactor*NPV(DiscountRate,$B5:G5) -> 0.2372410373 | H16: =EnergyLineLossFactor*NPV(DiscountRate,$B5:H5) -> 0.2688098109 | I16: =EnergyLineLossFactor*NPV(DiscountRate,$B5:I5) -> 0.2984298596 | J16: =EnergyLineLossFactor*NPV(DiscountRate,$B5:J5) -> 0.3262119464 | K16: =EnergyLineLossFactor*NPV(DiscountRate,$B5:K5) -> 0.352261505 | L16: =EnergyLineLossFactor*NPV(DiscountRate,$B5:L5) -> 0.3766787895 | M16: =EnergyLineLossFactor*NPV(DiscountRate,$B5:M5) -> 0.3995590345 | N16: =EnergyLineLossFactor*NPV(DiscountRate,$B5:N5) -> 0.4209926212 | O16: =EnergyLineLossFactor*NPV(DiscountRate,$B5:O5) -> 0.4413997941 | P16: =EnergyLineLossFactor*NPV(DiscountRate,$B5:P5) -> 0.4605007396 | Q16: =EnergyLineLossFactor*NPV(DiscountRate,$B5:Q5) -> 0.4783744161 | R16: =EnergyLineLossFactor*NPV(DiscountRate,$B5:R5) -> 0.4950954637 | S16: =EnergyLineLossFactor*NPV(DiscountRate,$B5:S5) -> 0.5109749926 | T16: =EnergyLineLossFactor*NPV(DiscountRate,$B5:T5) -> 0.5258199394 | U16: =EnergyLineLossFactor*NPV(DiscountRate,$B5:U5) -> 0.5396946177 | V16: =EnergyLineLossFactor*NPV(DiscountRate,$B5:V5) -> 0.5528475389 | W16: =EnergyLineLossFactor*NPV(DiscountRate,$B5:W5) -> 0.5651330348 | X16: =EnergyLineLossFactor*NPV(DiscountRate,$B5:X5) -> 0.5766060352 | Y16: =EnergyLineLossFactor*NPV(DiscountRate,$B5:Y5) -> 0.5874649493 | Z16: =EnergyLineLossFactor*NPV(DiscountRate,$B5:Z5) -> 0.5976000042 | AA16: =EnergyLineLossFactor*NPV(DiscountRate,$B5:AA5) -> 0.6071822154 | AB16: =EnergyLineLossFactor*NPV(DiscountRate,$B5:AB5) -> 0.6161210269 | AC16: =EnergyLineLossFactor*NPV(DiscountRate,$B5:AC5) -> 0.6245638042 | AD16: =EnergyLineLossFactor*NPV(DiscountRate,$B5:AD5) -> 0.6325330893 | AE16: =EnergyLineLossFactor*NPV(DiscountRate,$B5:AE5) -> 0.6399614635
A17: Heating and Cooling | B17: =EnergyLineLossFactor*NPV(DiscountRate,$B6:B6) -> 0.0546901188 | C17: =EnergyLineLossFactor*NPV(DiscountRate,$B6:C6) -> 0.1059533365 | D17: =EnergyLineLossFactor*NPV(DiscountRate,$B6:D6) -> 0.1539895943 | E17: =EnergyLineLossFactor*NPV(DiscountRate,$B6:E6) -> 0.198988645 | F17: =EnergyLineLossFactor*NPV(DiscountRate,$B6:F6) -> 0.2411304135 | G17: =EnergyLineLossFactor*NPV(DiscountRate,$B6:G6) -> 0.2805853646 | H17: =EnergyLineLossFactor*NPV(DiscountRate,$B6:H6) -> 0.3181105106 | I17: =EnergyLineLossFactor*NPV(DiscountRate,$B6:I6) -> 0.3532157534 | J17: =EnergyLineLossFactor*NPV(DiscountRate,$B6:J6) -> 0.3860491288 | K17: =EnergyLineLossFactor*NPV(DiscountRate,$B6:K6) -> 0.4167503942 | L17: =EnergyLineLossFactor*NPV(DiscountRate,$B6:L6) -> 0.4458797863 | M17: =EnergyLineLossFactor*NPV(DiscountRate,$B6:M6) -> 0.473099388 | N17: =EnergyLineLossFactor*NPV(DiscountRate,$B6:N6) -> 0.4985290673 | O17: =EnergyLineLossFactor*NPV(DiscountRate,$B6:O6) -> 0.5226162222 | P17: =EnergyLineLossFactor*NPV(DiscountRate,$B6:P6) -> 0.5451060451 | Q17: =EnergyLineLossFactor*NPV(DiscountRate,$B6:Q6) -> 0.5663842314 | R17: =EnergyLineLossFactor*NPV(DiscountRate,$B6:R6) -> 0.5862404754 | S17: =EnergyLineLossFactor*NPV(DiscountRate,$B6:S6) -> 0.6050071913 | T17: =EnergyLineLossFactor*NPV(DiscountRate,$B6:T6) -> 0.6225109346 | U17: =EnergyLineLossFactor*NPV(DiscountRate,$B6:U6) -> 0.6390381249 | V17: =EnergyLineLossFactor*NPV(DiscountRate,$B6:V6) -> 0.6546337314 | W17: =EnergyLineLossFactor*NPV(DiscountRate,$B6:W6) -> 0.6691686844 | X17: =EnergyLineLossFactor*NPV(DiscountRate,$B6:X6) -> 0.6828725459 | Y17: =EnergyLineLossFactor*NPV(DiscountRate,$B6:Y6) -> 0.6957858492 | Z17: =EnergyLineLossFactor*NPV(DiscountRate,$B6:Z6) -> 0.7078127811 | AA17: =EnergyLineLossFactor*NPV(DiscountRate,$B6:AA6) -> 0.7191372124 | AB17: =EnergyLineLossFactor*NPV(DiscountRate,$B6:AB6) -> 0.7297950262 | AC17: =EnergyLineLossFactor*NPV(DiscountRate,$B6:AC6) -> 0.7398208242 | AD17: =EnergyLineLossFactor*NPV(DiscountRate,$B6:AD6) -> 0.7492479054 | AE17: =EnergyLineLossFactor*NPV(DiscountRate,$B6:AE6) -> 0.7581082553
A18: Cooling | B18: =EnergyLineLossFactor*NPV(DiscountRate,$B7:B7) -> 0.0546901188 | C18: =EnergyLineLossFactor*NPV(DiscountRate,$B7:C7) -> 0.1059533365 | D18: =EnergyLineLossFactor*NPV(DiscountRate,$B7:D7) -> 0.1539895943 | E18: =EnergyLineLossFactor*NPV(DiscountRate,$B7:E7) -> 0.198988645 | F18: =EnergyLineLossFactor*NPV(DiscountRate,$B7:F7) -> 0.2411304135 | G18: =EnergyLineLossFactor*NPV(DiscountRate,$B7:G7) -> 0.2812321671 | H18: =EnergyLineLossFactor*NPV(DiscountRate,$B7:H7) -> 0.318757313 | I18: =EnergyLineLossFactor*NPV(DiscountRate,$B7:I7) -> 0.3538625559 | J18: =EnergyLineLossFactor*NPV(DiscountRate,$B7:J7) -> 0.3866959312 | K18: =EnergyLineLossFactor*NPV(DiscountRate,$B7:K7) -> 0.4178623674 | L18: =EnergyLineLossFactor*NPV(DiscountRate,$B7:L7) -> 0.4469917595 | M18: =EnergyLineLossFactor*NPV(DiscountRate,$B7:M7) -> 0.4742113612 | N18: =EnergyLineLossFactor*NPV(DiscountRate,$B7:N7) -> 0.5000043216 | O18: =EnergyLineLossFactor*NPV(DiscountRate,$B7:O7) -> 0.5240914765 | P18: =EnergyLineLossFactor*NPV(DiscountRate,$B7:P7) -> 0.5468893792 | Q18: =EnergyLineLossFactor*NPV(DiscountRate,$B7:Q7) -> 0.5681675654 | R18: =EnergyLineLossFactor*NPV(DiscountRate,$B7:R7) -> 0.5882850758 | S18: =EnergyLineLossFactor*NPV(DiscountRate,$B7:S7) -> 0.6070517917 | T18: =EnergyLineLossFactor*NPV(DiscountRate,$B7:T7) -> 0.6247771014 | U18: =EnergyLineLossFactor*NPV(DiscountRate,$B7:U7) -> 0.6413042917 | V18: =EnergyLineLossFactor*NPV(DiscountRate,$B7:V7) -> 0.6568998982 | W18: =EnergyLineLossFactor*NPV(DiscountRate,$B7:W7) -> 0.6716078863 | X18: =EnergyLineLossFactor*NPV(DiscountRate,$B7:X7) -> 0.6853117479 | Y18: =EnergyLineLossFactor*NPV(DiscountRate,$B7:Y7) -> 0.6982250511 | Z18: =EnergyLineLossFactor*NPV(DiscountRate,$B7:Z7) -> 0.7103871171 | AA18: =EnergyLineLossFactor*NPV(DiscountRate,$B7:AA7) -> 0.7218359928 | AB18: =EnergyLineLossFactor*NPV(DiscountRate,$B7:AB7) -> 0.7324938065 | AC18: =EnergyLineLossFactor*NPV(DiscountRate,$B7:AC7) -> 0.7425196045 | AD18: =EnergyLineLossFactor*NPV(DiscountRate,$B7:AD7) -> 0.7519466857 | AE18: =EnergyLineLossFactor*NPV(DiscountRate,$B7:AE7) -> 0.7608070356
A19: Water Heating | B19: =EnergyLineLossFactor*NPV(DiscountRate,$B8:B8) -> 0.05078368174 | C19: =EnergyLineLossFactor*NPV(DiscountRate,$B8:C8) -> 0.09844948062 | D19: =EnergyLineLossFactor*NPV(DiscountRate,$B8:D8) -> 0.1431728931 | E19: =EnergyLineLossFactor*NPV(DiscountRate,$B8:E8) -> 0.1851211607 | F19: =EnergyLineLossFactor*NPV(DiscountRate,$B8:F8) -> 0.224453478 | G19: =EnergyLineLossFactor*NPV(DiscountRate,$B8:G8) -> 0.2613212191 | H19: =EnergyLineLossFactor*NPV(DiscountRate,$B8:H8) -> 0.2958681789 | I19: =EnergyLineLossFactor*NPV(DiscountRate,$B8:I8) -> 0.3287793441 | J19: =EnergyLineLossFactor*NPV(DiscountRate,$B8:J8) -> 0.359592204 | K19: =EnergyLineLossFactor*NPV(DiscountRate,$B8:K8) -> 0.3884327868 | L19: =EnergyLineLossFactor*NPV(DiscountRate,$B8:L8) -> 0.4154203118 | M19: =EnergyLineLossFactor*NPV(DiscountRate,$B8:M8) -> 0.4406674786 | N19: =EnergyLineLossFactor*NPV(DiscountRate,$B8:N8) -> 0.4646440333 | O19: =EnergyLineLossFactor*NPV(DiscountRate,$B8:O8) -> 0.4870584691 | P19: =EnergyLineLossFactor*NPV(DiscountRate,$B8:P8) -> 0.5080078932 | Q19: =EnergyLineLossFactor*NPV(DiscountRate,$B8:Q8) -> 0.5278675337 | R19: =EnergyLineLossFactor*NPV(DiscountRate,$B8:R8) -> 0.5464174459 | S19: =EnergyLineLossFactor*NPV(DiscountRate,$B8:S8) -> 0.5639811672 | T19: =EnergyLineLossFactor*NPV(DiscountRate,$B8:T8) -> 0.5803770786 | U19: =EnergyLineLossFactor*NPV(DiscountRate,$B8:U8) -> 0.5956800326 | V19: =EnergyLineLossFactor*NPV(DiscountRate,$B8:V8) -> 0.6101482459 | W19: =EnergyLineLossFactor*NPV(DiscountRate,$B8:W8) -> 0.6238180231 | X19: =EnergyLineLossFactor*NPV(DiscountRate,$B8:X8) -> 0.6365658013 | Y19: =EnergyLineLossFactor*NPV(DiscountRate,$B8:Y8) -> 0.648598652 | Z19: =EnergyLineLossFactor*NPV(DiscountRate,$B8:Z8) -> 0.6598147795 | AA19: =EnergyLineLossFactor*NPV(DiscountRate,$B8:AA8) -> 0.6703925451 | AB19: =EnergyLineLossFactor*NPV(DiscountRate,$B8:AB8) -> 0.680362758 | AC19: =EnergyLineLossFactor*NPV(DiscountRate,$B8:AC8) -> 0.689649813 | AD19: =EnergyLineLossFactor*NPV(DiscountRate,$B8:AD8) -> 0.6983965893 | AE19: =EnergyLineLossFactor*NPV(DiscountRate,$B8:AE8) -> 0.7066304498
A20: Whole Facility | B20: =EnergyLineLossFactor*NPV(DiscountRate,$B9:B9) -> 0.05078368174 | C20: =EnergyLineLossFactor*NPV(DiscountRate,$B9:C9) -> 0.09844948062 | D20: =EnergyLineLossFactor*NPV(DiscountRate,$B9:D9) -> 0.1440011044 | E20: =EnergyLineLossFactor*NPV(DiscountRate,$B9:E9) -> 0.1867120678 | F20: =EnergyLineLossFactor*NPV(DiscountRate,$B9:F9) -> 0.2267467479 | G20: =EnergyLineLossFactor*NPV(DiscountRate,$B9:G9) -> 0.2642612915 | H20: =EnergyLineLossFactor*NPV(DiscountRate,$B9:H9) -> 0.2994038886 | I20: =EnergyLineLossFactor*NPV(DiscountRate,$B9:I9) -> 0.3323150538 | J20: =EnergyLineLossFactor*NPV(DiscountRate,$B9:J9) -> 0.3631279137 | K20: =EnergyLineLossFactor*NPV(DiscountRate,$B9:K9) -> 0.3924336671 | L20: =EnergyLineLossFactor*NPV(DiscountRate,$B9:L9) -> 0.4198495655 | M20: =EnergyLineLossFactor*NPV(DiscountRate,$B9:M9) -> 0.4454912193 | N20: =EnergyLineLossFactor*NPV(DiscountRate,$B9:N9) -> 0.4698310552 | O20: =EnergyLineLossFactor*NPV(DiscountRate,$B9:O9) -> 0.4925800348 | P20: =EnergyLineLossFactor*NPV(DiscountRate,$B9:P9) -> 0.5138375386 | Q20: =EnergyLineLossFactor*NPV(DiscountRate,$B9:Q9) -> 0.5339808883 | R20: =EnergyLineLossFactor*NPV(DiscountRate,$B9:R9) -> 0.5527920669 | S20: =EnergyLineLossFactor*NPV(DiscountRate,$B9:S9) -> 0.5703557882 | T20: =EnergyLineLossFactor*NPV(DiscountRate,$B9:T9) -> 0.5869732659 | U20: =EnergyLineLossFactor*NPV(DiscountRate,$B9:U9) -> 0.6024802594 | V20: =EnergyLineLossFactor*NPV(DiscountRate,$B9:V9) -> 0.6171363715 | W20: =EnergyLineLossFactor*NPV(DiscountRate,$B9:W9) -> 0.6308061487 | X20: =EnergyLineLossFactor*NPV(DiscountRate,$B9:X9) -> 0.6437132741 | Y20: =EnergyLineLossFactor*NPV(DiscountRate,$B9:Y9) -> 0.6558928669 | Z20: =EnergyLineLossFactor*NPV(DiscountRate,$B9:Z9) -> 0.6672441285 | AA20: =EnergyLineLossFactor*NPV(DiscountRate,$B9:AA9) -> 0.6779463383 | AB20: =EnergyLineLossFactor*NPV(DiscountRate,$B9:AB9) -> 0.6880311514 | AC20: =EnergyLineLossFactor*NPV(DiscountRate,$B9:AC9) -> 0.6975292758 | AD20: =EnergyLineLossFactor*NPV(DiscountRate,$B9:AD9) -> 0.7063732385 | AE20: =EnergyLineLossFactor*NPV(DiscountRate,$B9:AE9) -> 0.7146965976
B21: 1 | C21: 2 | D21: 3 | E21: 4 | F21: 5 | G21: 6 | H21: 7 | I21: 8 | J21: 9 | K21: 10 | L21: 11 | M21: 12 | N21: 13 | O21: 14 | P21: 15 | Q21: 16 | R21: 17 | S21: 18 | T21: 19 | U21: 20 | V21: 21 | W21: 22 | X21: 23 | Y21: 24 | Z21: 25 | AA21: 26 | AB21: 27 | AC21: 28 | AD21: 29 | AE21: 30
A22: Capacity Avoided Cost ($/kW) | B22: =CapacityLineLossFactor*NPV(DiscountRate,$B10:B10) -> 85.99100248 | C22: =CapacityLineLossFactor*NPV(DiscountRate,$B10:C10) -> 169.6301007 | D22: =CapacityLineLossFactor*NPV(DiscountRate,$B10:D10) -> 250.9816208 | E22: =CapacityLineLossFactor*NPV(DiscountRate,$B10:E10) -> 330.1081292 | F22: =CapacityLineLossFactor*NPV(DiscountRate,$B10:F10) -> 407.0704813 | G22: =CapacityLineLossFactor*NPV(DiscountRate,$B10:G10) -> 481.927868 | H22: =CapacityLineLossFactor*NPV(DiscountRate,$B10:H10) -> 554.7378615 | I22: =CapacityLineLossFactor*NPV(DiscountRate,$B10:I10) -> 625.5564591 | J22: =CapacityLineLossFactor*NPV(DiscountRate,$B10:J10) -> 694.4381266 | K22: =CapacityLineLossFactor*NPV(DiscountRate,$B10:K10) -> 761.4358402 | L22: =CapacityLineLossFactor*NPV(DiscountRate,$B10:L10) -> 826.6011272 | M22: =CapacityLineLossFactor*NPV(DiscountRate,$B10:M10) -> 889.9841055 | N22: =CapacityLineLossFactor*NPV(DiscountRate,$B10:N10) -> 951.6335222 | O22: =CapacityLineLossFactor*NPV(DiscountRate,$B10:O10) -> 1011.596791 | P22: =CapacityLineLossFactor*NPV(DiscountRate,$B10:P10) -> 1069.92003 | Q22: =CapacityLineLossFactor*NPV(DiscountRate,$B10:Q10) -> 1126.648094 | R22: =CapacityLineLossFactor*NPV(DiscountRate,$B10:R10) -> 1181.824612 | S22: =CapacityLineLossFactor*NPV(DiscountRate,$B10:S10) -> 1235.492021 | T22: =CapacityLineLossFactor*NPV(DiscountRate,$B10:T10) -> 1287.691594 | U22: =CapacityLineLossFactor*NPV(DiscountRate,$B10:U10) -> 1338.463478 | V22: =CapacityLineLossFactor*NPV(DiscountRate,$B10:V10) -> 1387.846722 | W22: =CapacityLineLossFactor*NPV(DiscountRate,$B10:W10) -> 1435.879305 | X22: =CapacityLineLossFactor*NPV(DiscountRate,$B10:X10) -> 1482.598169 | Y22: =CapacityLineLossFactor*NPV(DiscountRate,$B10:Y10) -> 1528.039244 | Z22: =CapacityLineLossFactor*NPV(DiscountRate,$B10:Z10) -> 1572.23748 | AA22: =CapacityLineLossFactor*NPV(DiscountRate,$B10:AA10) -> 1615.226868 | AB22: =CapacityLineLossFactor*NPV(DiscountRate,$B10:AB10) -> 1657.040471 | AC22: =CapacityLineLossFactor*NPV(DiscountRate,$B10:AC10) -> 1697.710448 | AD22: =CapacityLineLossFactor*NPV(DiscountRate,$B10:AD10) -> 1737.268077 | AE22: =CapacityLineLossFactor*NPV(DiscountRate,$B10:AE10) -> 1775.743781

Sheet Retail Rates (hidden)
B2: Rates | C2: Base or Off Peak kWh | D2: High Sum kWh | E2: High Win kWh | F2: High Avg kWh | G2: AVG kWh | H2: Sum Demand (kVA) | I2: Win Demand (kVA) | J2: AVG Demand Value (kW @ 0.9 PF)
B3: 3 - Muni | C3: 0.11131 | G3: =C3 -> 0.11131 | H3: 0 | J3: =H3 -> 0
B4: 9 - GS | D4: 0.12707 | E4: 0.13533 | F4: =(D4/3)+(2*E4/3) -> 0.1325766667 | G4: =F4 -> 0.1325766667 | H4: 4.05 | I4: 0 | J4: =H4*0.85 -> 3.4425
B5: 14 - Farm Serv | D5: 0.13966 | E5: 0.1535 | F5: 0.1488866667 | G5: =F5 -> 0.1488866667 | H5: 0 | J5: =H5 -> 0
B6: 16 - GS TOU | C6: 0.11964 | D6: 0.21349 | E6: 0.21349 | F6: 0.21349 | G6: =AVERAGE(F6,C6) -> 0.166565 | H6: 0 | I6: 0 | J6: =((H6/3)+(2*I6/3))*0.9 -> 0
B7: 20 - Med GS | D7: 0.05339 | E7: 0.05044 | F7: 0.05142333333 | G7: =AVERAGE(F7,C7) -> 0.05142333333 | H7: 19.5 | J7: =H7*0.85 -> 16.575
B8: 21 - GS TOU | C8: 0.05072 | D8: 0.08518 | E8: 0.08518 | F8: 0.08518 | G8: =AVERAGE(F8,C8) -> 0.06795 | H8: 20.3 | I8: 20.3 | J8: =((H8/3)+(2*I8/3))*0.9 -> 18.27
B9: 21A - Exp GS TOU | C9: 0.04086 | D9: 0.07739 | E9: 0.05095 | F9: 0.05976333333 | G9: =AVERAGE(F9,C9) -> 0.05031166667 | H9: 21.16 | I9: 12.69 | J9: =((H9/3)+(2*I9/3))*0.9 -> 13.962
B10: 22 - School | D10: 0.1115 | E10: 0.13523 | F10: 0.12732 | G10: =AVERAGE(F10,C10) -> 0.12732 | H10: 0 | J10: =H10 -> 0
B11: 23 - Industrial | C11: 0.04902 | G11: =C11 -> 0.04902 | J11: 15.05
B12: 24 - Lrg GS | C12: 0.04458 | D12: 0.08911 | E12: 0.08911 | F12: =(D12/3)+(2*E12/3) -> 0.08911 | G12: =AVERAGE(F12,C12) -> 0.066845 | H12: 16.79 | I12: 16.79 | J12: =((H12/3)+(2*I12/3)) -> 16.79

Sheet Avoided Costs (hidden)
A2: Energy Avoided Costs ($/kWh) | B2: Avoided Costs
A3: Energy End-Use | B3: 2025 | C3: 2026 | D3: 2027 | E3: 2028 | F3: 2029 | G3: 2030 | H3: 2031 | I3: 2032 | J3: 2033 | K3: 2034 | L3: 2035 | M3: 2036 | N3: 2037 | O3: 2038 | P3: 2039 | Q3: 2040 | R3: 2041 | S3: 2042 | T3: 2043 | U3: 2044 | V3: 2045 | W3: 2046 | X3: 2047 | Y3: 2048 | Z3: 2049 | AA3: 2050 | AB3: 2051 | AC3: 2052 | AD3: 2053 | AE3: 2054 | AF3: 2055 | AG3: 2056 | AH3: 2057 | AI3: 2058 | AJ3: 2059 | AK3: 2060
A4: Lighting | B4: 0.051 | C4: 0.052 | D4: 0.053 | E4: 0.054 | F4: 0.055 | G4: 0.056 | H4: 0.057 | I4: 0.058 | J4: 0.06 | K4: 0.061 | L4: 0.062 | M4: 0.063 | N4: 0.064 | O4: 0.066 | P4: 0.067 | Q4: 0.068 | R4: 0.07 | S4: 0.071 | T4: 0.073 | U4: 0.074 | V4: 0.076 | W4: 0.077 | X4: 0.079 | Y4: 0.08 | Z4: 0.082 | AA4: 0.083 | AB4: 0.085 | AC4: 0.087 | AD4: 0.089 | AE4: 0.09 | AF4: 0.092 | AG4: 0.094 | AH4: 0.096 | AI4: 0.098 | AJ4: 0.1 | AK4: 0.102
A5: Refrigeration | B5: 0.047 | C5: 0.048 | D5: 0.049 | E5: 0.05 | F5: 0.051 | G5: 0.052 | H5: 0.053 | I5: 0.054 | J5: 0.055 | K5: 0.056 | L5: 0.057 | M5: 0.058 | N5: 0.059 | O5: 0.061 | P5: 0.062 | Q5: 0.063 | R5: 0.064 | S5: 0.066 | T5: 0.067 | U5: 0.068 | V5: 0.07 | W5: 0.071 | X5: 0.072 | Y5: 0.074 | Z5: 0.075 | AA5: 0.077 | AB5: 0.078 | AC5: 0.08 | AD5: 0.082 | AE5: 0.083 | AF5: 0.085 | AG5: 0.087 | AH5: 0.088 | AI5: 0.09 | AJ5: 0.092 | AK5: 0.094
A6: Heating and Cooling | B6: 0.056 | C6: 0.057 | D6: 0.058 | E6: 0.059 | F6: 0.06 | G6: 0.061 | H6: 0.063 | I6: 0.064 | J6: 0.065 | K6: 0.066 | L6: 0.068 | M6: 0.069 | N6: 0.07 | O6: 0.072 | P6: 0.073 | Q6: 0.075 | R6: 0.076 | S6: 0.078 | T6: 0.079 | U6: 0.081 | V6: 0.083 | W6: 0.084 | X6: 0.086 | Y6: 0.088 | Z6: 0.089 | AA6: 0.091 | AB6: 0.093 | AC6: 0.095 | AD6: 0.097 | AE6: 0.099 | AF6: 0.101 | AG6: 0.103 | AH6: 0.105 | AI6: 0.107 | AJ6: 0.109 | AK6: 0.111
A7: Cooling | B7: 0.056 | C7: 0.057 | D7: 0.058 | E7: 0.059 | F7: 0.06 | G7: 0.062 | H7: 0.063 | I7: 0.064 | J7: 0.065 | K7: 0.067 | L7: 0.068 | M7: 0.069 | N7: 0.071 | O7: 0.072 | P7: 0.074 | Q7: 0.075 | R7: 0.077 | S7: 0.078 | T7: 0.08 | U7: 0.081 | V7: 0.083 | W7: 0.085 | X7: 0.086 | Y7: 0.088 | Z7: 0.09 | AA7: 0.092 | AB7: 0.093 | AC7: 0.095 | AD7: 0.097 | AE7: 0.099 | AF7: 0.101 | AG7: 0.103 | AH7: 0.105 | AI7: 0.107 | AJ7: 0.109 | AK7: 0.112
A8: Water Heating | B8: 0.052 | C8: 0.053 | D8: 0.054 | E8: 0.055 | F8: 0.056 | G8: 0.057 | H8: 0.058 | I8: 0.06 | J8: 0.061 | K8: 0.062 | L8: 0.063 | M8: 0.064 | N8: 0.066 | O8: 0.067 | P8: 0.068 | Q8: 0.07 | R8: 0.071 | S8: 0.073 | T8: 0.074 | U8: 0.075 | V8: 0.077 | W8: 0.079 | X8: 0.08 | Y8: 0.082 | Z8: 0.083 | AA8: 0.085 | AB8: 0.087 | AC8: 0.088 | AD8: 0.09 | AE8: 0.092 | AF8: 0.094 | AG8: 0.096 | AH8: 0.098 | AI8: 0.1 | AJ8: 0.102 | AK8: 0.104
A9: Whole Facility | B9: 0.052 | C9: 0.053 | D9: 0.055 | E9: 0.056 | F9: 0.057 | G9: 0.058 | H9: 0.059 | I9: 0.06 | J9: 0.061 | K9: 0.063 | L9: 0.064 | M9: 0.065 | N9: 0.067 | O9: 0.068 | P9: 0.069 | Q9: 0.071 | R9: 0.072 | S9: 0.073 | T9: 0.075 | U9: 0.076 | V9: 0.078 | W9: 0.079 | X9: 0.081 | Y9: 0.083 | Z9: 0.084 | AA9: 0.086 | AB9: 0.088 | AC9: 0.09 | AD9: 0.091 | AE9: 0.093 | AF9: 0.095 | AG9: 0.097 | AH9: 0.099 | AI9: 0.101 | AJ9: 0.103 | AK9: 0.105
A10: Capacity Avoided Cost ($/kW) | B10: 85.8250272 | C10: 90.64839372 | D10: 95.74283345 | E10: 101.1235807 | F10: 106.8067259 | G10: 112.8092639 | H10: 119.1491446 | I10: 125.8453265 | J10: 132.9178338 | K10: 140.3878161 | L10: 148.2776114 | M10: 156.6108131 | N10: 165.4123408 | O10: 174.7085144 | P10: 184.5271329 | Q10: 194.8975577 | R10: 205.8508005 | S10: 217.4196155 | T10: 229.6385979 | U10: 242.5442871 | V10: 256.175276 | W10: 270.5723265 | X10: 285.7784912 | Y10: 301.8392425 | Z10: 318.8026079 | AA10: 336.7193144 | AB10: 355.6429399 | AC10: 375.6300731 | AD10: 396.7404833 | AE10: 419.0372984 | AF10: 442.5871946 | AG10: 467.4605949 | AH10: 493.7318803 | AI10: 521.479612 | AJ10: 550.7867662 | AK10: 581.7409825

Sheet Lookups (hidden)
A2: Energy Line Loss Factor | B2: 1.0605
A3: Capacity Line Loss Factor | B3: 1.088
A4: Discount Rate | B4: 0.0859

Sheet Custom Input Instructions
B2: CUSTOM SPECIFICATIONS
B3: The custom application must be used for all energy conservation measures that are not covered by the other EnergyWise for Your Business application forms. Custom incentives will cover up to 50% of the total project cost for retrofit/equipment replacement projects, and up to 75% of the incremental cost of installing high efficiency equipment over baseline, code-compliant equipment for renovation, new construction, and end of useful life (EUL) projects. A single application form may be submitted for multiple custom energy conservation measures (ECM) that are considered part of the same project. In these situations, a project summary, cost estimate, and energy impacts must be presented for each measure individually, not in total. Custom applications require supporting documentation on equipment performance and calculations documenting the energy and demand savings that are expected to result from each measure. Projects for renovation and EUL must meet the baseline to match the standards listed below in the table. New construction will meet the code that is required and determined for design of building.
C4: Custom Type of Project | D4: Size | E4: Baseline Code
C5: HVAC Only (includes chillers) and may have controls | D5: <760,000 Btus (65 tons) | E5: Federal Minimum Requirements of 2023 (US DOE regulates and mandates)
C6: HVAC Only (includes chillers) and may have controls | D6: >760,000 Btus (65 tons) | E6: Federal Minimum Requirements of 2012 (DOE regulates and mandates)
C7: Other stand-alone projects (sensors, controls only, economizers, air compressors, EMS, etc.) | D7: Not Applicable | E7: ASHRAE 90.1 2007
C8: Whole Building Solutions with FEMP Requirements (government buildings); exceptions may apply dependent on location and requirements. | D8: Not Applicable | E8: ASHRAE 90.1 2019
C9: Whole Building Solutions with non-government building requirements | D9: Not Applicable | E9: ASHRAE 90.1 2007
B10: Project Summary Instructions and Supporting Documentation:
B11: 1. Project Overview: Provide a brief overview of the proposed project that includes all existing equipment. Include a basic description of the facility and its function, location of affected equipment and typical facility operation hours.
B12: 2. Existing System or Base Case Description: For retrofit projects, describe the existing system or equipment that will be modified under this application and state how the current system is operating. For renovation, new construction or EUL/equpment replacement projects, applications should provide information for the base-efficiency system or equipment. This should include: ▪ Detailed description of the affected equipment including system capacity, age, load profiles, capacity, production rate and hours of operation. ▪ Number of existing units. ▪ Manufacturer data sheets with equipment performance ratings (BHP, CFM, PSI, kW, efficiency rating, U-value, etc.). Provide nameplate data if manufacturer data sheets are unavailable. ▪ Part-load performance data (where applicable). ▪ Description of controls and sequence of operations.
B13: 3. Proposed System Description: Describe the measures that are proposed in detail. Include: ▪ Detailed description of high-efficiency system or equipment and operating conditions. ▪ Manufacturer data sheets for the materials or performance ratings for equipment being installed (BHP, CFM, PSI, kW, efficiency rating, U-value, etc.). ▪ Description of controls and sequence of operations. ▪ One line diagrams (where applicable).
B14: Cost Estimate & Energy Impacts Instructions and Supporting Documentation:
B15: 1. Cost Estimates: Enter in shaded areas the labor and material/equipment cost for proposed equipment and, if applicable, baseline equipment. Include a measure-by-measure summary of the estimated costs associated with the project. For retrofit projects, provide a detailed cost breakdown associated with the project, including written proposals from vendors and contractors or itemized estimates of components from up-to-date estimating manuals. For new construction, renovation, or end-of-useful (EUL) life replacement projects, include cost data for base high-efficiency systems or equipment.
B16: 2. Energy Impacts: Fill in the shaded areas the proposed kWh and kW values, and the baseline kWh and kW values. Include a measure-by-measure summary of the calculated energy and demand savings associated with the project. Clearly indicate all assumptions and variables used in the analysis. This includes all engineering formulas and documentation of all the factors, values and assumptions used in the formulas (Microsoft Excel® spreadsheet preferred). In cases where energy modeling is used to determine savings, approved modeling software must be used. Please submit a complete energy model including input and output data. Show calculations used to determine baseline and proposed estimated electricity usage including: ▪ Energy (kWh) consumption for the four time periods. ▪ Winter peak demand (kW).
B17: Note: If a project consists of multiple custom measures, overview, description, estimates and impacts must be completed for each proposed energy conservation measure. These sections are intended to provide a summary of each measure with supporting documentation attached as appropriate.
F18: ="Version # "&'Version Tracking'!B2 -> Version # 15.1

Sheet Validation (hidden)
A1: Building Type | B1: Primary Contact | C1: Tax Status | D1: Payment To | E1: Cities
A2: Convenience/C-store | B2: Customer | C2: Corporation | D2: Customer | E2: Adams Run
A3: Fitness/Recreation | B3: Contractor | C3: LLC | D3: Contractor | E3: Aiken
A4: Grocery | B4: Other (fill out below) | C4: Partnership | E4: Allendale
A5: Health Facility | C5: Individual Propiertorship | E5: Arlington Estates
A6: Industrial | C6: Not for Profit | E6: Awendaw
A7: Lodging | E7: Bamberg
A8: Multifamily | E8: Barnwell
A9: Office | E9: Batesburg Leesville
A10: Religious Facility | E10: Bath
A11: Restaurant | E11: Beaufort
A12: Retail | E12: Beech Island
A13: School (K-12) | E13: Blackville
A14: School (University/College) | E14: Blair
A15: Warehouse | E15: Bluffton
A16: Other | E16: Blythewood
E17: Bowman
E18: Branchville
E19: Brunson
E20: Calhoun Falls
E21: Cameron
E22: Canadys
E23: Carlisle
E24: Cayce
E25: Chapin
E26: Chappels
E27: Charleston
E28: Childs
E29: Clarks Hill
E30: Columbia
E31: Coosawatchie
E32: Cope
E33: Cottageville
E34: Cross
E35: Cross Roads
E36: Daniel Island
E37: Daufuskie Island
E38: Denmark
E39: Dorchester
E40: Early Branch
E41: East Lake Hills
E42: Eastover
E43: Edgefield
E44: Edisto Island
E45: Ehrhardt
E46: Elgin
E47: Elko
E48: Elloree
E49: Estill
E50: Eutawville
E51: Fairfax
E52: Folly Beach
E53: Fort Motte
E54: Furman
E55: Garnett
E56: Gaston
E57: Gifford
E58: Gilbert
E59: Gloverville
E60: Goose Creek
E61: Graniteville
E62: Grays Hill
E63: Green Pond
E64: Hampton
E65: Hanahan
E66: Hardeeville
E67: Harleyville
E68: Hilda
E69: Holly Hill
E70: Hollywood
E71: Hopkins
E72: Irmo
E73: Isle of Palms
E74: Jackson
E75: Jacksonboro
E76: James Island
E77: Jenkinsville
E78: Johns Island
E79: Johnston
E80: Ladson
E81: Ladys Island
E82: Langley
E83: Leesville
E84: Lexington
E85: Lincolnville
E86: Little Mountain
E87: Livingston
E88: Lobeco
E89: Lodge
E90: Lugoff
E91: Luray
E92: Martin
E93: Mc Clellanville
E94: Mc Cormick
E95: Modoc
E96: Moncks Corner
E97: Monetta
E98: Montmorenci
E99: Mount Carmel
E100: Mount Pleasant
E101: Muphys Estates
E102: Newberry
E103: North
E104: North Augusta
E105: North Charleston
E106: Northeast
E107: Norway
E108: Oakridge
E109: Okatie
E110: Olar
E111: Olympia
E112: Orangeburg
E113: Parksville
E114: Peak
E115: Pelion
E116: Perry
E117: Pineland
E118: Pomaria
E119: Pontiac
E120: Port Royal
E121: Prosperity
E122: Ravenel
E123: Reevesville
E124: Ridge Spring
E125: Ridgeland
E126: Ridgeville
E127: Ridgeway
E128: Rosewood
E129: Round O
E130: Rowesville
E131: Ruffin
E132: Saint George
E133: Saint Helena Island
E134: Saluda
E135: Santee
E136: Scotia
E137: Seabrook
E138: Sheldon
E139: Sieglers Crossroads
E140: Smoaks
E141: Springfield
E142: State Park
E143: Sullivans Island
E144: Summerville
E145: Swansea
E146: Sycamore
E147: Tillman
E148: Trenton
E149: Troy
E150: Ulmer
E151: Union
E152: University Park
E153: Vance
E154: Varnville
E155: Vaucluse
E156: Wagener
E157: Walterboro
E158: Ward
E159: Warrenville
E160: West Columbia
E161: White Hall
E162: White Rock
E163: Wildwood
E164: Williams
E165: Williston
E166: Windsor
E167: Winnsboro
E168: Yemassee

Sheet Whole Building Solutions
A2: Whole Building Solutions
A3: The Whole Building Solutions approach is intended to encourage integrated energy efficient designs by providing enhanced incentives to customers who address overall building energy performance. Customers can identify and maximize whole building energy efficiency opportunities by incorporating energy efficiency systems into their design and construction, and the operation of their buildings. Customers with new construction and major renovation projects greater than 75,000 square feet in size are eligible for Whole Building Solutions incentives if the energy model indicates the building's performance is over 10% better than the ASHRAE 90.1-2007 for non-governmental buildings and ASHRAE 90.1-2019 for governmental buildings (some exceptions may apply). The financial incentives will be defined by the energy savings from eligible electric end-uses in kilowatt hours.
A4: Whole Building Solutions projects shall: • Always start with a meeting with the EnergyWise for Your Business team, ideally prior to performing an energy model. This meeting will include discussion on establising a base case building design, mutually agreed to by all parties. The proposed base case for the project must conform to the minimum requirements of current federal, state and local jurisdictions or standard design practice where code is not applicable. • Apply to buildings that are greater than or equal to 75,000 square feet in size. • Include multiple energy efficiency measures such as building envelope, interior lighting, and heating, ventilation and air conditioning (HVAC) systems. • Include a projected minimum combined annual energy savings of at least 10% versus the base case design. • Require customer to sign and agree to a Memorandum of Understanding during pre-approval, detailing the project that was pre-approved. • Not be eligible for warehouses, storage facilities industrial facilities, manufacturing, etc.
A5: Please submit the following project documentation:
A6: • Architectural floor plans, exterior wall details, and window schedule
A7: • Lighting fixture schedule, including ballast details and lighting floor plans
A8: • Mechanical equipment schedule and floor plans
A9: • COMcheck Reports (Interior/Exterior Lighting, Mechanical, Envelope)
A10: • Fully executable modeling software files for both the Baseline and the As-Built Building
A11: • Code compliance summary sheets
A13: For projects pursuing LEED certification, please provide the following:
A14: • A copy of the LEED NC v3.0 (or later versions) template for Energy & Atmosphere Credit 1: Optimized Energy Performance - Option 1
A15: • All supporting documentation submitted with LEED EAc1 Template
A16: • GBCI comments and responses and the LEED Certification Project Review Report issued by GBCI, that were accepted as the final submission
B18: Whole Building Solutions Incentives*
B19: % Improvement over Code | C19: Incentive per kWh reduced
B20: 10-15% | C20: $0.15/kWh
B21: >15% to 21% | C21: $0.20/kWh
B22: ˃21% to 27% | C22: $0.25/kWh
B23: >27% | C23: $0.30/kWh
A24: * All EnergyWise for Your Business incentives are capped at 50% of the total project cost.
D25: ="Version # "&'Version Tracking'!B2 -> Version # 15.1

Sheet Version Tracking (hidden)
A2: current | B2: =LOOKUP(2,1/(B1:B50001<>""),B1:B50001) -> 15.1
B3: Version | C3: Notes | D3: Date | E3: Updated By
B4: 2 | C4: update NPV Avoided costs | D4: 2014-04-08 | E4: O. Morgan
B5: 2.1 | C5: updates | D5: 2015-08-27 | E5: Joy Zins
B6: 2.2 | C6: Formatting, added buttons for tabs, addressed Jennifer's comments | D6: 2015-10-21 | E6: Rachael Miller
B7: 2.3 | C7: Joy edits | D7: 2015-10-22 | E7: Joy Zins
B8: 2.4 | C8: Minor formating and content changes | D8: 2015-10-28 | E8: Jennifer Mosser
B9: 2.5 | C9: Added whole building systems sheets | D9: 2017-01-20 | E9: Rick Campana
B10: 2.6 | C10: Revised whole building systems | D10: 2017-01-23 | E10: Joy Zins
B11: 2.7 | C11: O'neil edits to whole building | D11: 2017-01-24 | E11: OM
B12: 2.8 | C12: Revisions per Annika | D12: 2017-01-31 | E12: Mary Freibert and JZ
B13: 2.9 | C13: Fixed locked cells on input sheet | D13: 2017-03-30 | E13: RC
B14: 3 | C14: Added clarification of material/equipment on cost estimate tab | D14: 2018-01-05 | E14: CVHReed
B15: 3.1 | C15: Added tech services project type, note about HVAC baseline | D15: 2018-02-07 | E15: RC
B16: 10.1 | C16: Updated Dominion Branding and T&CS | D16: 2020-08-27 | E16: JSE
B17: 10.2 | C17: Updated T&C and Cap language added building types | D17: 2021-02-22 | E17: JSE
B18: 10.4 | C18: Updated T&C & Invoice Rqmts, Replaced "Industrial customers" with "customers eligible for Rate 23" and updated Version to match the rest | D18: 2022-08-08 | E18: Liv Stewart
B19: 14.1 | C19: Removed white bar on Information Tab | D19: 2023-11-07 | E19: Liv Stewart
B20: 14.3 | C20: Updated Email address | D20: 2024-03-25 | E20: Liv Stewart
B21: 15.1 | C21: Updated colors/customer experience Updated avoided costs and lookup tables. Changed references to summer peak demand to winter peak demand | D21: 2025-01-14 | E21: Liv Leigh/Jon Eicher
